{"text_format":"1","workbook":"xlsx","n_sheets":59,"sheets":["modList07","modList05","modProv","Инструкция","Лог обновления","Титульный","Территории","Дифференциация","Форма 1.0.1 | Форма 2.7.1","Форма 2.7.1","Форма 1.0.1 | Форма 2.7.2","Форма 2.7.2","Форма 1.0.1 | Форма 2.8","Форма 2.8","Форма 1.0.1 | Форма 2.9","Форма 2.9","Форма 1.0.2","Сведения об изменении","Комментарии","Проверка","modReestr","AllSheetsInThisWorkbook","modCheckCyan","modInfo","TEHSHEET","modfrmSelectData","modList06","modList01","modList08","et_union_hor","et_union_vert","modList00","modList02","modList03","modList04","modList09","modHTTP","modfrmRegion","MR_LIST","REESTR_VT","REESTR_VED","modfrmReestrObj","DataOrg","modfrmReestr","modUpdTemplMain","REESTR_ORG","modClassifierValidate","modHyp","modfrmDateChoose","modComm","modThisWorkbook","REESTR_MO","REESTR_MO_FILTER","modfrmReestrMR","modServiceModule","modfrmCheckUpdates","REESTR_DS","REESTR_CHS","REESTR_LINK"],"not_rendered":{"charts":0,"images":25,"macros":1,"external_links":0,"defined_names":264,"comments":9,"pivot_tables":0},"unopened":[],"bounds":{"document_bytes":16777216,"sheet_cells":100000,"rows_first":2000,"rows_last":500,"rows_between":2000,"halvings":0,"cell_chars":16384,"cell_head_chars":4096},"cells_cut":0,"cells_raw":0,"read":"whole","date_system":"1900"}

{"sheet":"modList07","index":0,"n_rows":0,"n_cols":0,"rows_kept":0,"cut":false,"hidden":true,"merged":[]}

{"sheet":"modList05","index":1,"n_rows":0,"n_cols":0,"rows_kept":0,"cut":false,"hidden":true,"merged":[]}

{"sheet":"modProv","index":2,"n_rows":0,"n_cols":0,"rows_kept":0,"cut":false,"hidden":true,"merged":[]}

{"sheet":"Инструкция","index":3,"n_rows":83,"n_cols":27,"rows_kept":83,"cut":false,"hidden":false,"merged":[[82,5,82,23],[60,7,60,23],[78,4,78,23],[72,5,72,23],[73,5,73,23],[74,4,74,23],[75,4,75,23],[76,4,76,23],[77,4,77,23],[69,4,69,19],[39,4,39,23],[40,4,44,23],[45,4,56,23],[80,5,80,18],[58,4,58,6],[58,7,58,23],[59,4,59,6],[71,5,71,23],[57,4,57,20],[70,4,70,19],[34,4,38,23],[22,15,22,22],[21,5,21,12],[1,1,1,6],[2,1,2,2],[4,1,4,24],[6,4,18,23],[20,5,20,12],[20,15,20,23],[21,15,21,23]]}
[null,null,null,null,null,null,null,null,null,null,null,null,null,null,null,null,null,null,null,null,null,null,null,null,null,null," (требуется обновление)"]
[null,{"$f":"\"Код отчёта: \" & GetCode()","v":"Код отчёта: FAS.JKH.OPEN.INFO.BALANCE.HVS"}]
[null,{"$f":"\"Версия \" & Getversion()","v":"Версия 1.0.5"}]
[]
[null,{"$f":"Титульный!E5","v":"Информация о показателях финансово-хозяйственной деятельности, об основных потребительских характеристиках регулируемых товаров и услуг, об инвестиционных программах регулируемой организации в сфере холодного водоснабжения"}]
[]
[null,null,null,null,"• На рабочем месте должен быть установлен MS Office 2007 SP3, 2010, 2013, 2016 с полной версией MS Excel\n\n• Макросы во время работы должны быть включены (!)\n\n• Для корректной работы отчёта требуется выбрать низкий уровень безопасности\n(В меню MS Excel 2007/2010/2013/2016: Параметры Excel | Центр управления безопасностью | Параметры центра управления безопасностью | Параметры макросов | Включить все макросы | ОК)\n\n• Если Вы работаете в табличном процессоре MS Excel 2007 и выше, то можете использовать для работы формат XLSB (Двоичная книга Excel). При работе в формате XLSB заметно быстрее происходит сохранение файла, а также уменьшается размер по сравнению с форматами XLS и XLSM\n\n• Не рекомендуется снимать защиту с листов и каким-либо образом модифицировать защищаемые формулы и расчётные поля, в противном случае, отчёт будет отклонён системой\n\n• При сохранении не следует выбирать формат XLSX (Книга Excel), так как в указанном формате макросы, необходимые для работы отчёта, безвозвратно удаляются"]
[]
[]
[]
[]
[]
[]
[]
[]
[]
[]
[]
[]
[]
[null,null,null,null,"A"," - не обязательные для заполнения",null,null,null,null,null,null,null,null,"A"," - с формулами и константами"]
[null,null,null,null,"A"," - обязательные для заполнения",null,null,null,null,null,null,null,null,"A"," - с выбором значений до двойному клику"]
[]
[]
[]
[]
[]
[]
[]
[]
[]
[]
[]
[]
[null,null,null,null,"Если в предложенном Вам списке необходимая организация, МР/МО отсутствуют, обновите реестры с помощью кнопок\n\nВ результате синхронизации с базой данных список организаций (МР/МО) будет заменён актуальным (механизм синхронизации требует подключения к сети Интернет и основан на использовании протокола HTTPS (TCP порт 443))\n\nЕсли после обновления Вам не удалось найти необходимую организацию в списке, обратитесь к ответственному за поддержание реестра Вашего региона."]
[]
[]
[]
[]
[]
[]
[]
[]
[]
[]
[null,null,null,null,"• При сохранении шаблона осуществляется проверка корректности данных, в том числе на наличие значений в ячейках, обязательных для заполнения\n\n• Если какая-то ячейка не удовлетворяет условию проверки, на лист «Проверка» добавляется гиперссылка на данную ячейку и указывается причина ошибки\n\n• В колонке «Статус» для каждого сообщения возможны 2 значения: ошибка и предупреждение\n\n• При наличии сообщений со статусом «Ошибка» шаблон будет отклонён системой и не будет загружен в хранилище данных, сообщения со статусом «Предупреждение» носят информационный характер, и такой шаблон будет принят системой"]
[]
[]
[]
[]
[]
[]
[]
[]
[]
[]
[]
[null,null,null,null,"Обратиться за помощью в службу технической поддержки"]
[]
[]
[]
[]
[]
[]
[]
[]
[]
[]
[]
[null,null,null,null,"Инструкция по загрузке сопроводительных материалов"]
[null,null,null,null,"Инструкция по работе с отчетной формой"]
[]
[]
[]
[]
[]
[]
[]
[null,null,null,null,"При наличии подключения к Интернет, можно автоматически проверять наличие доступных обновлений. Выберите способ оповещения о наличии обновлений для отчёта:"]
[]
[null,null,null,null,null,"проверять доступные обновления (рекомендуется)",null,null,null,null,null,null,null,null,null,null,null,null,null,null,null,null,null,null,null,null,"y"]
[]
[null,null,null,null,null,"никогда не проверять наличие обновлений (не рекомендуется)"]

{"sheet":"Лог обновления","index":4,"n_rows":22,"n_cols":3,"rows_kept":22,"cut":false,"hidden":true,"merged":[]}
["Дата/Время","Сообщение","Статус"]
["2021-04-30T11:43:20","Проверка доступных обновлений...","Информация"]
["2021-04-30T11:43:21","Доступно обновление до версии 1.0.5","Информация"]
["2021-04-30T11:43:21","Описание изменений: Версии 1.0.5\n1. Корректировка при сохранении в части заполненности листа 'Территории'\n\nВерсии 1.0.4, 1.0.3\n1. Исправление формулы расчета показателя 'Доля расходов, % (от суммы расходов по указанной статье)' листа 'Форма 2.7.2'\n\nВерсия 1.0.2\n1. Корректировка ограничений пункта 'Среднесписочная численность основного производственного персонала' листа 'Форма 2.7.1'\n\nВерсия 1.0.1\n1. Исправление отображения листа 'Форма 2.9' при отсутствии у организации инвестиционной программы","Информация"]
["2021-04-30T11:43:21","Размер файла обновления: 410112 байт","Информация"]
["2021-04-30T11:43:22","Подготовка к обновлению...","Информация"]
["2021-04-30T11:43:25","Сохранение файла резервной копии: C:\\Users\\yus_gurkovich\\Desktop\\Альтернатив\\ЛЕМЭК\\ЕИАС текущие ЛЕМЭК по 01.05.2021\\FAS.JKH.OPEN.INFO.BALANCE.HVS(v1.0.2) до 30.04..xls.BKP..xlsb","Информация"]
["2021-04-30T11:43:26","Резервная копия создана: C:\\Users\\yus_gurkovich\\Desktop\\Альтернатив\\ЛЕМЭК\\ЕИАС текущие ЛЕМЭК по 01.05.2021\\FAS.JKH.OPEN.INFO.BALANCE.HVS(v1.0.2) до 30.04..xls.BKP..xlsb","Информация"]
["2021-04-30T11:43:26","Создание книги для установки обновлений...","Информация"]
["2021-04-30T11:43:28","Файл обновления загружен: C:\\Users\\yus_gurkovich\\Desktop\\Альтернатив\\ЛЕМЭК\\ЕИАС текущие ЛЕМЭК по 01.05.2021\\UPDATE.FAS.JKH.OPEN.INFO.BALANCE.HVS.TO.1.0.5.56.xls","Информация"]
["2021-04-30T11:43:32","Обновление завершилось удачно! Шаблон FAS.JKH.OPEN.INFO.BALANCE.HVS(v1.0.2) до 30.04..xls сохранен под именем 'FAS.JKH.OPEN.INFO.BALANCE.HVS(v1.0.5) до 30.04..xls'","Информация"]
["2021-04-30T11:43:58","Проверка доступных обновлений...","Информация"]
["2021-04-30T11:43:59","Нет доступных обновлений для отчёта с кодом FAS.JKH.OPEN.INFO.BALANCE.HVS!","Информация"]
["2021-04-30T11:44:03","Проверка доступных обновлений...","Информация"]
["2021-04-30T11:44:04","Нет доступных обновлений для отчёта с кодом FAS.JKH.OPEN.INFO.BALANCE.HVS!","Информация"]
["2021-04-30T11:45:22","Проверка доступных обновлений...","Информация"]
["2021-04-30T11:45:23","Нет доступных обновлений для отчёта с кодом FAS.JKH.OPEN.INFO.BALANCE.HVS!","Информация"]
["2021-04-30T11:50:56","Проверка доступных обновлений...","Информация"]
["2021-04-30T11:50:57","Нет доступных обновлений для отчёта с кодом FAS.JKH.OPEN.INFO.BALANCE.HVS!","Информация"]
["2021-05-01T18:01:19","Проверка доступных обновлений...","Информация"]
["2021-05-01T18:01:21","Нет доступных обновлений для отчёта с кодом FAS.JKH.OPEN.INFO.BALANCE.HVS!","Информация"]
["2021-11-01T20:20:23","Проверка доступных обновлений...","Информация"]

{"sheet":"Титульный","index":5,"n_rows":47,"n_cols":6,"rows_kept":47,"cut":false,"hidden":true,"merged":[[4,4,4,5]]}
[null,null,null,null,null,28016967]
[]
[]
[null,null,null,null,null,{"$f":"version","v":"Версия 1.0.5"}]
[null,null,null,null,"Информация о показателях финансово-хозяйственной деятельности, об основных потребительских характеристиках регулируемых товаров и услуг, об инвестиционных программах регулируемой организации в сфере холодного водоснабжения"]
[]
[null,null,null,null,"Субъект РФ","Ленинградская область"]
[]
[null,null,null,null,"Публикация2","На сайте регулирующего органа"]
[]
[null,null,null,null,"Отсутствует Интернет в границах территории МО, где организация осуществляет регулируемые виды деятельности","нет"]
[]
[null,null,null,null,"Тип отчета","первичное раскрытие информации"]
[null,null,null,null,"Дата внесения изменений в информацию, подлежащую раскрытию","30.04.2021"]
[]
[null,null,null,null,"Применяется дифференциация тарифа по централизованным системам холодного водоснабжения?"]
[null,null,null,null,"Информация по скольким централизованным системам холодного водоснабжения будет заполнена в шаблоне?"]
[]
[]
[null,null,2020,null,"Отчётный период (год)",2020]
[]
[]
[null,null,null,null,"Является ли данное юридическое лицо подразделением (филиалом) другой организации","нет"]
[]
[]
[null,null,null,null,"Наименование организации","ООО \"Лемэк\""]
[null,null,null,null,"Наименование филиала"]
[null,null,null,null,"ИНН","7801213324"]
[null,null,null,null,"КПП","472501001"]
[null,null,null,null,"Вид деятельности"]
[]
[null,null,null,null,"Регулируемая организация осуществляет сдачу годового бухгалтерского баланса в налоговые органы","да"]
[null,null,null,null,"Дата направления годового бухгалтерского баланса в налоговые органы","12.04.2021"]
[]
[null,null,null,null,"Превышает ли выручка от регулируемой деятельности 80% совокупной выручки за отчетный год","нет"]
[]
[null,null,null,null,"Организация выполняет инвестиционную программу","нет"]
[null,null,null,null,"Дифференциация по территориям и системам коммунальной инфраструктуры применяется для инвестиционных программ","нет"]
[]
[null,null,null,null,"Почтовый адрес регулируемой организации","188507, Ленинградская область, Ломоносовский р-он, п. Новоселье, Здание котельной на газу, лит. А"]
[null,null,null,null,"Фамилия, имя, отчество руководителя","Геер Станислав Николаевич"]
[]
[null,null,null,null,null,"Ответственный за составление формы"]
[null,null,null,null,"Фамилия, имя, отчество","Антонова Эльвира Вячеславовна"]
[null,null,null,null,"Должность","экономист"]
[null,null,null,null,"(код) номер телефона","8-813-309-03-33"]
[null,null,null,null,"e-mail","lemek@newterritories.ru"]

{"sheet":"Территории","index":6,"n_rows":17,"n_cols":18,"rows_kept":17,"cut":false,"hidden":true,"merged":[[8,5,8,6],[8,8,8,9],[9,5,9,6],[9,8,9,9],[3,3,3,7],[5,3,5,4],[5,5,5,6],[7,3,7,4],[7,5,7,7],[7,8,7,11],[6,4,6,11],[12,7,14,7],[11,2,15,2],[11,3,15,3],[11,4,15,4],[12,5,14,5],[12,6,14,6]]}
[null,null,null,null,null,null,null,null,null,null,"МО","ОКТМО","МР"]
[]
[]
[null,null,null,"Перечень муниципальных районов и муниципальных образований (территорий оказания услуг)"]
[]
[null,null,null,null,null,"да"]
[]
[null,null,null,"Территория оказания услуг",null,"Муниципальный район",null,null,"Муниципальное образование"]
[null,null,null,"№ п/п","Наименование","№ п/п",null,"Наименование","№ п/п",null,"Наименование","ОКТМО"]
[null,null,null,"1","2","3",null,"4","5",null,"6","7"]
[null,null,null,0,null,"",null,null,"",null,null,null,"размерженный МР",null,null,"флаг используемости территории на листе Перечень тарифов","копия территорий","МР (ОКТМО)"]
[null,"auto",null,1,"Ломоносовский муниципальный район, Аннинское (41630152);","",0,null,"","0",null,null,{"$f":"mergeValue(H12)","v":0},null,null,{"$f":"IF(ISERROR(MATCH(MID(Q12,1,250),MID(note_ter,1,250),0)),\"n\",\"y\")","v":"n"},"Ломоносовский муниципальный район, Аннинское (41630152);",{"$f":"K12&\"(\"&L12&\")\"","v":"()"}]
[null,"auto",null,null,null,"",1,"Ломоносовский муниципальный район","","0",null,null,{"$f":"mergeValue(H13)","v":"Ломоносовский муниципальный район"},null,null,null,null,{"$f":"K13&\"(\"&L13&\")\"","v":"()"}]
[null,"auto",null,null,null,null,null,null,"",1,"Аннинское","41630152",{"$f":"mergeValue(H14)","v":"Ломоносовский муниципальный район"},null,null,null,null,{"$f":"K14&\" (\"&L14&\")\"","v":"Аннинское (41630152)"}]
[null,null,null,null,null,null,null,null,"",null,""]
[null,null,null,null,null,"","","",""]
[null,"man",null,null,"","",null,null,"",null,null,null,null,null,null,null,"Добавить территорию оказания услуг"]

{"sheet":"Дифференциация","index":7,"n_rows":26,"n_cols":26,"rows_kept":26,"cut":false,"hidden":true,"merged":[[17,0,18,0],[17,3,17,4],[3,3,3,8],[4,3,4,8],[7,4,7,5],[8,1,8,3],[5,0,6,5],[7,1,7,3],[8,4,8,5],[9,1,9,3],[9,4,9,5],[13,1,13,3],[10,4,10,5],[10,1,10,3],[24,2,25,2],[11,1,11,3],[12,1,12,3],[21,4,23,4],[21,5,23,5],[21,3,23,3],[17,5,17,8],[21,6,22,6],[21,7,22,7],[21,8,22,8],[21,9,22,9],[17,9,17,12],[19,6,19,7],[19,10,19,11],[18,10,18,11],[18,6,18,7]]}
[]
[]
[]
[null,null,null,{"$f":"Титульный!E5","v":"Информация о показателях финансово-хозяйственной деятельности, об основных потребительских характеристиках регулируемых товаров и услуг, об инвестиционных программах регулируемой организации в сфере холодного водоснабжения"}]
[null,null,null,{"$f":"IF(org=0,\"Не определено\",org)","v":"ООО \"Лемэк\""}]
[]
[]
[]
[]
[]
[]
[]
[]
[]
[]
[]
[]
[null,null,null,"Вид деятельности",null,"Дифференциация по территориям оказания услуг",null,null,null,"Дифференциация по централизованным системам коммунальной инфраструктуры"]
[null,null,null,"№ п/п","Наименование","да/нет","№ п/п",null,"Наименование","да/нет","№ п/п",null,"Наименование"]
[null,null,null,"1","2","3","4",null,"5","6","7",null,"8"]
[]
[null,null,null,"1","Холодное водоснабжение. Питьевая вода","нет",null,1,null,"нет","","1","",null,null,null,null,null,null,null,null,null,null,4189671,"a",1705000]
[null,null,null,null,null,null,null,null,null,null,"",null,""]
[null,null,null,null,null,null,null,null,"",null,""]
[null,null,null,null,"",null,null,null,null,null,""]
[null,null,null,null,null,null,null,null,null,null,""]

{"sheet":"Форма 1.0.1 | Форма 2.7.1","index":8,"n_rows":20,"n_cols":7,"rows_kept":20,"cut":false,"hidden":true,"merged":[[19,4,19,5],[4,3,4,6],[5,3,5,6],[7,3,7,6],[8,3,8,5],[8,6,9,6]]}
[null,null,null,null,null,null,4]
[]
[]
[]
[null,null,null,"Форма 1.0.1 Основные параметры раскрываемой информации 1"]
[null,null,null,{"$f":"IF(org=0,\"Не определено\",org)","v":"ООО \"Лемэк\""}]
[]
[null,null,22,"Форма 1.0.1"]
[null,null,null,"Параметры формы",null,null,"Описание параметров формы"]
["\\",null,null,"№ п/п",null,"Информация"]
[null,null,null,"1",2,3,4]
[null,null,null,1,"Дата заполнения/внесения изменений",{"$f":"IF(form_up_date=\"\",\"\",form_up_date)","v":"30.04.2021"},"Указывается календарная дата первичного заполнения или внесения изменений в форму в виде «ДД.ММ.ГГГГ»."]
[null,null,null,"2.1","Наименование централизованной системы коммунальной инфраструктуры","наименование отсутствует","Указывается наименование централизованной системы холодного водоснабжения/горячего водоснабжения/водоотведения/теплоснабжения, к которой относится размещаемая информация.\nВ случае наличия нескольких централизованных систем коммунальной инфраструктуры, информация по каждой из них указывается в отдельной строке. "]
[null,null,null,"3.1","Наименование регулируемого вида деятельности","Холодное водоснабжение. Питьевая вода","Указывается наименование вида регулируемой деятельности."]
[null,null,null,"4.1","Территория оказания услуги по регулируемому виду деятельности","x"]
[null,null,null,{"$f":"D15&\".1\"","v":"4.1.1"},"Субъект РФ",{"$f":"IF(region_name=\"\",\"\",region_name)","v":"Ленинградская область"},"Указывается наименование субъекта Российской Федерации"]
[null,null,null,"4.1.1.1","муниципальный район","Ломоносовский муниципальный район","Указывается наименование муниципального района, на территории которого организация оказывает услуги по регулируемому виду деятельности."]
[null,null,null,"4.1.1.1.1","муниципальное образование","Аннинское (41630152)","Указывается наименование и код муниципального района, муниципального образования в соответствии с Общероссийским классификатором территорий муниципальных образований (далее - ОКТМО), входящего в муниципальный район, на территории которого организация оказывает услуги по регулируемому виду деятельности.\nВ случае оказания услуг по регулируемому виду деятельности на территории нескольких муниципальных районов (муниципальных образований) данные по каждому их них указываются в отдельной строке."]
[]
[null,null,null,null,"  1 Информация по данной форме публикуется при раскрытии информации по каждой из форм."]

{"sheet":"Форма 2.7.1","index":9,"n_rows":78,"n_cols":16,"rows_kept":78,"cut":false,"hidden":false,"merged":[[42,4,43,4],[42,5,43,5],[8,3,8,5],[11,7,13,7],[73,4,73,6],[12,4,13,4],[12,3,13,3],[12,5,13,5],[11,3,11,6],[66,3,67,3],[66,4,67,4],[66,5,67,5],[37,3,38,3],[37,5,38,5],[39,3,40,3],[39,5,40,5],[42,3,43,3]]}
[null,null,null,null,null,null,4]
[null,null,null,null,null,"тыс. руб.",null,"Указываются прочие расходы, которые подлежат отнесению на регулируемые виды деятельности в соответствии с законодательством в сфере водоснабжения и водоотведения."]
[]
[null,null,null,null,null,"%",null,"Указывается показатель использования по производственному объекту как процент объем перекачки по отношению к пиковому дню отчетного года."]
[]
[]
[null,null,null,null,null,null,null,4]
[]
[null,null,null,"Информация об основных показателях финансово-хозяйственной деятельности регулируемой организации, включая структуру основных производственных затрат (в части регулируемой деятельности)"]
[]
[null,null,null,null,null,null,22]
[null,null,null,"Параметры формы",null,null,null,"Описание параметров формы"]
[null,null,null,"№ п/п","Наименование параметра","Единица измерения","Вид деятельности:\r\n  - Холодное водоснабжение. Питьевая вода\r\n\r\nТерритория оказания услуг:\r\n  - без дифференциации\r\n\r\nЦентрализованная система холодного водоснабжения:\r\n  - наименование отсутствует"]
[null,null,null,null,null,null,"Информация"]
[null,null,null,"1","2","3",{"$f":"G1","v":4}]
[null,null,null,"1","Дата сдачи годового бухгалтерского баланса в налоговые органы","х",{"$f":"IF(buhg_flag=\"да\",IF(dateBuhg=\"\",\"Не указана\",dateBuhg),\"Не осуществлялась\")","v":"12.04.2021"},"Указывается календарная дата сдачи бухгалтерского баланса в налоговые органы в случае, если организация сдает бухгалтерский баланс в налоговые органы по виду регулируемой деятельности, в отношении которого размещаются данные. Дата указывается в виде «ДД.ММ.ГГГГ»."]
[null,null,null,"2","Выручка от регулируемого вида деятельности","тыс. руб.",31052.896358515336,"Указывается выручка от регулируемой деятельности по виду деятельности в сфере холодного водоснабжения."]
[null,null,null,"3","Себестоимость производимых товаров (оказываемых услуг) по регулируемому виду деятельности, включая:","тыс. руб.",{"$f":"SUM(G19:G20,G23:G24,G27,G30:G32,G35,G38:G42)","v":37762.666337014329},"Указывается суммарная себестоимость производимых товаров."]
[null,null,null,"3.1","Расходы на оплату холодной воды, приобретаемой у других организаций для последующей подачи потребителям","тыс. руб.",16590.259819999999]
[null,null,null,"3.2","Расходы на покупаемую электрическую энергию (мощность), используемую в технологическом процессе:","тыс. руб.",1170.9576400000001]
[null,null,null,"3.2.1","Средневзвешенная стоимость 1 кВт.ч (с учетом мощности)","руб.",6.1601790777809935]
[null,null,null,"3.2.2","Объем приобретения электрической энергии","тыс. кВт·ч",190.08499999999998]
[null,null,null,"3.3","Расходы на химические реагенты, используемые в технологическом процессе","тыс. руб.",0]
[null,null,null,"3.4","Расходы на оплату труда и отчисления на социальные нужды основного производственного персонала, в том числе:","тыс. руб.",{"$f":"G25+G26","v":1236.3178310400001},"Указывается общая сумма расходов на оплату труда и отчислений на социальные нужды основного производственного персонала."]
[null,null,null,"3.4.1","Расходы на оплату труда основного производственного персонала","тыс. руб.",942.31542000000002]
[null,null,null,"3.4.2","Отчисления на социальные нужды основного производственного персонала","тыс. руб.",294.00241104000003]
[null,null,null,"3.5","Расходы на оплату труда и отчисления на социальные нужды административно-управленческого персонала, в том числе:","тыс. руб.",{"$f":"G28+G29","v":3689.2823828621908},"Указывается общая сумма расходов на оплату труда и отчислений на социальные нужды административно-управленческого персонала."]
[null,null,null,"3.5.1","Расходы на оплату труда административно-управленческого персонала","тыс. руб.",3019.4799427340954]
[null,null,null,"3.5.2","Отчисления на социальные нужды административно-управленческого персонала","тыс. руб.",669.80244012809533]
[null,null,null,"3.6","Расходы на амортизацию основных производственных средств","тыс. руб.",8840.5600793306385]
[null,null,null,"3.7","Расходы на аренду имущества, используемого для осуществления регулируемого вида деятельности","тыс. руб.",26.582464920000003]
[null,null,null,"3.8","Общепроизводственные расходы, в том числе:","тыс. руб.",1924.1602396454034,"Указывается общая сумма общепроизводственных расходов."]
[null,null,null,"3.8.1","Расходы на текущий ремонт","тыс. руб.",954.16,"Указываются расходы на текущий ремонт, отнесенные к общепроизводственным расходам."]
[null,null,null,"3.8.2","Расходы на капитальный ремонт","тыс. руб.",0,"Указываются расходы на капитальный ремонт, отнесенные к общепроизводственным расходам."]
[null,null,null,"3.9","Общехозяйственные расходы, в том числе:","тыс. руб.",4284.5458792160953,"Указывается общая сумма общехозяйственных расходов."]
[null,null,null,"3.9.1","Расходы на текущий ремонт","тыс. руб.",25.6,"Указываются расходы на текущий ремонт, отнесенные к общехозяйственным расходам."]
[null,null,null,"3.9.2","Расходы на капитальный ремонт","тыс. руб.",0,"Указываются расходы на капитальный ремонт, отнесенные к общехозяйственным расходам."]
[null,null,null,"3.10","Расходы на капитальный и текущий ремонт основных производственных средств","тыс. руб.",0]
[null,null,null,null,"Информация об объемах товаров и услуг, их стоимости и способах приобретения у тех организаций, сумма оплаты услуг которых превышает 20 процентов суммы расходов по указанной статье расходов",null,"отсутствует",null,null,null,{"$f":"nerr(MATCH(\"есть\",List01_flag_index_1,0))","v":0}]
[null,null,null,"3.11","Расходы на услуги производственного характера, оказываемые по договорам с организациями на проведение регламентных работ в рамках технологического процесса","тыс. руб.",0]
[null,null,null,null,"Информация об объемах товаров и услуг, их стоимости и способах приобретения у тех организаций, сумма оплаты услуг которых превышает 20 процентов суммы расходов по указанной статье расходов",null,"отсутствует",null,null,null,{"$f":"nerr(MATCH(\"есть\",List01_flag_index_2,0))","v":0}]
[null,null,null,"3.12","Прочие расходы, которые подлежат отнесению на регулируемые виды деятельности, в том числе:","тыс. руб.",{"$f":"SUM(G43:G45)","v":0},"Указывается общая сумма прочих расходов, которые подлежат отнесению на регулируемые виды деятельности в соответствии с основами ценообразования в сфере водоснабжения и водоотведения."]
[null,null,null,"3.12.0"]
[null,null,null,null,null,null,null,null,null,null,null,null,null,null,null,"SUM_CALC"]
[null,null,null,null,"Добавить прочие расходы",null,null,"В случае наличия нескольких видов прочих расходов информация указывается в отдельных строках."]
[null,null,null,"4","Чистая прибыль, полученная от регулируемого вида деятельности, в том числе:","тыс. руб.",{"$f":"G17-G18","v":-6709.7699784989927}]
[null,null,null,"4.1","Размер расходования чистой прибыли на финансирование мероприятий, предусмотренных инвестиционной программой регулируемой организации","тыс. руб.",0]
[null,null,null,"5","Изменение стоимости основных фондов, в том числе:","тыс. руб.",0]
[null,null,null,"5.1","Изменение стоимости основных фондов за счет их ввода в эксплуатацию (вывода из эксплуатации)","тыс. руб.",0]
[null,null,null,"5.1.1","Изменение стоимости основных фондов за счет их ввода в эксплуатацию","тыс. руб.",0]
[null,null,null,"5.1.2","Изменение стоимости основных фондов за счет их вывода в эксплуатацию","тыс. руб.",0]
[null,null,null,"5.2","Изменение стоимости основных фондов за счет их переоценки","тыс. руб.",0]
[null,null,null,"6","Валовая прибыль (убытки) от продажи товаров и услуг по регулируемому виду деятельности","тыс. руб.",0]
[null,null,null,"7","Годовая бухгалтерская отчетность, включая бухгалтерский баланс и приложения к нему","x",null,"Указывается ссылка на документ, предварительно загруженный в хранилище файлов ФГИС ЕИАС.\nРаскрывается регулируемой организацией, выручка от регулируемых видов деятельности которой превышает 80 процентов совокупной выручки за отчетный год."]
[null,null,null,"8","Объем поднятой воды","тыс. куб. м",0]
[null,null,null,"9","Объем покупной воды","тыс. куб. м",{"$f":"612.88547","v":612.88547000000005}]
[null,null,null,"10","Объем воды, пропущенной через очистные сооружения","тыс. куб. м",0]
[null,null,null,"11","Объем отпущенной потребителям воды, в том числе:","тыс. куб. м",449.43078200000002,"Указывается общий объем отпущенной потребителям воды."]
[null,null,null,"11.1","Объем отпущенной потребителям воды, определенный по приборам учета","тыс. куб. м",449.43078200000002]
[null,null,null,"11.2","Объем отпущенной потребителям воды, определенный расчетным путем (по нормативам потребления)","тыс. куб. м",0]
[null,null,null,"12","Потери воды в сетях","%",6.9999999999999991]
[null,null,null,"13","Среднесписочная численность основного производственного персонала","человек",1]
[null,null,null,"14","Удельный расход электроэнергии на подачу воды в сеть","тыс. кВт·ч или тыс. куб. м",190.08499999999998]
[null,null,null,"15","Расход воды на собственные нужды, в том числе:","%",19.670000000000002,"Указывается доля общего расхода воды на собственные нужны от объема отпуска воды потребителям."]
[null,null,null,"15.1","Расход воды на хозяйственно-бытовые нужды","%",0,"Указывается доля расхода воды на хозяйственно-бытовые нужны от объема отпуска воды потребителям."]
[null,null,null,"16","Показатель использования производственных объектов, в том числе:","%",43,"Указывается суммарный показатель использования по всем производственным объектам как процент объема перекачки по отношению к пиковому дню отчетного года."]
[null,null,null,"16.0"]
[]
[null,null,"О","16.1","ВНС","%",43,"Указывается показатель использования по производственному объекту как процент объем перекачки по отношению к пиковому дню отчетного года."]
[null,null,"О","16.2","ВНС","%",43,"Указывается показатель использования по производственному объекту как процент объем перекачки по отношению к пиковому дню отчетного года."]
[null,null,null,null,"Добавить производственный объект",null,null,"В случае наличия нескольких производственных объектов информация по каждому из них указывается в отдельной строке."]
[]
[]
[]
[]
[]
[]
[null,null,null,null,null,null,{"$f":"IF(G17-G18 <>G53,\"WARNING\",\"\")","v":"WARNING"}]

{"sheet":"Форма 1.0.1 | Форма 2.7.2","index":10,"n_rows":20,"n_cols":7,"rows_kept":20,"cut":false,"hidden":true,"merged":[[19,4,19,5],[4,3,4,6],[5,3,5,6],[7,3,7,6],[8,3,8,5],[8,6,9,6]]}
[null,null,null,null,null,null,4]
[]
[]
[]
[null,null,null,"Форма 1.0.1 Основные параметры раскрываемой информации 1"]
[null,null,null,{"$f":"IF(org=0,\"Не определено\",org)","v":"ООО \"Лемэк\""}]
[]
[null,null,22,"Форма 1.0.1"]
[null,null,null,"Параметры формы",null,null,"Описание параметров формы"]
["\\",null,null,"№ п/п",null,"Информация"]
[null,null,null,"1",2,3,4]
[null,null,null,1,"Дата заполнения/внесения изменений",{"$f":"IF(form_up_date=\"\",\"\",form_up_date)","v":"30.04.2021"},"Указывается календарная дата первичного заполнения или внесения изменений в форму в виде «ДД.ММ.ГГГГ»."]
[null,null,null,"2.1","Наименование централизованной системы коммунальной инфраструктуры","наименование отсутствует","Указывается наименование централизованной системы холодного водоснабжения/горячего водоснабжения/водоотведения/теплоснабжения, к которой относится размещаемая информация.\nВ случае наличия нескольких централизованных систем коммунальной инфраструктуры, информация по каждой из них указывается в отдельной строке. "]
[null,null,null,"3.1","Наименование регулируемого вида деятельности","Холодное водоснабжение. Питьевая вода","Указывается наименование вида регулируемой деятельности."]
[null,null,null,"4.1","Территория оказания услуги по регулируемому виду деятельности","x"]
[null,null,null,{"$f":"D15&\".1\"","v":"4.1.1"},"Субъект РФ",{"$f":"IF(region_name=\"\",\"\",region_name)","v":"Ленинградская область"},"Указывается наименование субъекта Российской Федерации"]
[null,null,null,"4.1.1.1","муниципальный район","Ломоносовский муниципальный район","Указывается наименование муниципального района, на территории которого организация оказывает услуги по регулируемому виду деятельности."]
[null,null,null,"4.1.1.1.1","муниципальное образование","Аннинское (41630152)","Указывается наименование и код муниципального района, муниципального образования в соответствии с Общероссийским классификатором территорий муниципальных образований (далее - ОКТМО), входящего в муниципальный район, на территории которого организация оказывает услуги по регулируемому виду деятельности.\nВ случае оказания услуг по регулируемому виду деятельности на территории нескольких муниципальных районов (муниципальных образований) данные по каждому их них указываются в отдельной строке."]
[]
[null,null,null,null,"  1 Информация по данной форме публикуется при раскрытии информации по каждой из форм."]

{"sheet":"Форма 2.7.2","index":11,"n_rows":18,"n_cols":34,"rows_kept":18,"cut":false,"hidden":true,"merged":[[4,3,4,10],[22,4,22,17],[6,18,7,18],[6,3,6,17],[7,4,7,5],[7,7,7,8],[7,11,7,12],[11,3,17,3],[11,4,11,17],[11,28,17,28],[12,4,12,15],[12,20,14,20],[12,21,14,21],[15,4,15,15],[15,20,17,20],[15,21,17,21]]}
[]
[]
[]
[]
[null,null,null,"Информация о расходах на капитальный и текущий ремонт основных производственных средств, расходах на услуги производственного характера"]
[]
[null,null,null,"Параметры формы",null,null,null,null,null,null,null,null,null,null,null,null,null,null,"Описание параметров формы"]
[null,null,null,"№ п/п","№ п/п",null,"Наименование параметра","№ п/п",null,"Способ приобретения","Реквизиты договора","№ п/п",null,"Наименование товара/услуги","Объем приобретенных товаров, услуг","Единица измерения объема","Стоимость, тыс. руб.","Доля расходов, % (от суммы расходов по указанной статье)"]
[null,null,null,"1",null,"2","3",null,"4","5","6",null,"7","8","9","10","11","12","13"]
[]
[null,null,null,"0"]
[22,null,null,"1","Вид деятельности:\r\n  - Холодное водоснабжение. Питьевая вода\r\n\r\nТерритория оказания услуг:\r\n  - без дифференциации\r\n\r\nЦентрализованная система холодного водоснабжения:\r\n  - наименование отсутствует",null,null,null,null,null,null,null,null,null,null,null,null,null,null,null,null,null,null,null,null,null,null,null,null,null,"",null,"NOTSHOW",3]
[null,null,null,null,"Информация об объемах товаров и услуг, их стоимости и способах приобретения у организаций, в том числе:",null,null,null,null,null,null,null,null,null,null,null,{"$f":"SUMIF(T14:T15,\"i\",Q14:Q15)","v":0},null,"Указывается сумма стоимости приобретения товаров и услуг у организаций, сумма оплаты услуг которых превышает 20% суммы расходов на услуги производственного характера","i",1,{"$f":"INDEX(List01_flag_index_1,1,MATCH(A12,List01_NumberColumns,0))","v":"отсутствует"}]
[null,null,null,null,null,0]
[null,null,null,null,"","","",""]
[null,null,null,null,"Расходы на услуги производственного характера, выполняемые по договорам с организациями на проведение регламентных работ в рамках технологического процесса. Из них товары и услуги, приобретенные у организаций, сумма оплаты услуг которых превышает 20% суммы расходов по статье:",null,null,null,null,null,null,null,null,null,null,null,{"$f":"SUMIF(T17:T18,\"i\",Q17:Q18)","v":0},null,"Указывается сумма стоимости приобретения товаров и услуг у организаций, сумма оплаты услуг которых превышает 20% суммы расходов на капитальный и текущий ремонт основных производственных средства","i",2,{"$f":"INDEX(List01_flag_index_2,1,MATCH(A12,List01_NumberColumns,0))","v":"отсутствует"}]
[null,null,null,null,null,0]
[null,null,null,null,"","","",""]

{"sheet":"Форма 1.0.1 | Форма 2.8","index":12,"n_rows":20,"n_cols":7,"rows_kept":20,"cut":false,"hidden":true,"merged":[[19,4,19,5],[4,3,4,6],[5,3,5,6],[7,3,7,6],[8,3,8,5],[8,6,9,6]]}
[null,null,null,null,null,null,4]
[]
[]
[]
[null,null,null,"Форма 1.0.1 Основные параметры раскрываемой информации 1"]
[null,null,null,{"$f":"IF(org=0,\"Не определено\",org)","v":"ООО \"Лемэк\""}]
[]
[null,null,22,"Форма 1.0.1"]
[null,null,null,"Параметры формы",null,null,"Описание параметров формы"]
["\\",null,null,"№ п/п",null,"Информация"]
[null,null,null,"1",2,3,4]
[null,null,null,1,"Дата заполнения/внесения изменений",{"$f":"IF(form_up_date=\"\",\"\",form_up_date)","v":"30.04.2021"},"Указывается календарная дата первичного заполнения или внесения изменений в форму в виде «ДД.ММ.ГГГГ»."]
[null,null,null,"2.1","Наименование централизованной системы коммунальной инфраструктуры","наименование отсутствует","Указывается наименование централизованной системы холодного водоснабжения/горячего водоснабжения/водоотведения/теплоснабжения, к которой относится размещаемая информация.\nВ случае наличия нескольких централизованных систем коммунальной инфраструктуры, информация по каждой из них указывается в отдельной строке. "]
[null,null,null,"3.1","Наименование регулируемого вида деятельности","Холодное водоснабжение. Питьевая вода","Указывается наименование вида регулируемой деятельности."]
[null,null,null,"4.1","Территория оказания услуги по регулируемому виду деятельности","x"]
[null,null,null,{"$f":"D15&\".1\"","v":"4.1.1"},"Субъект РФ",{"$f":"IF(region_name=\"\",\"\",region_name)","v":"Ленинградская область"},"Указывается наименование субъекта Российской Федерации"]
[null,null,null,"4.1.1.1","муниципальный район","Ломоносовский муниципальный район","Указывается наименование муниципального района, на территории которого организация оказывает услуги по регулируемому виду деятельности."]
[null,null,null,"4.1.1.1.1","муниципальное образование","Аннинское (41630152)","Указывается наименование и код муниципального района, муниципального образования в соответствии с Общероссийским классификатором территорий муниципальных образований (далее - ОКТМО), входящего в муниципальный район, на территории которого организация оказывает услуги по регулируемому виду деятельности.\nВ случае оказания услуг по регулируемому виду деятельности на территории нескольких муниципальных районов (муниципальных образований) данные по каждому их них указываются в отдельной строке."]
[]
[null,null,null,null,"  1 Информация по данной форме публикуется при раскрытии информации по каждой из форм."]

{"sheet":"Форма 2.8","index":13,"n_rows":39,"n_cols":8,"rows_kept":39,"cut":false,"hidden":false,"merged":[[2,3,2,5],[6,7,8,7],[8,0,8,1],[7,3,8,3],[7,4,8,4],[7,5,8,5],[6,3,6,6]]}
[null,null,null,null,null,null,4,5]
[]
[null,null,null,"Информация об основных потребительских характеристиках регулируемых товаров и услуг регулируемой организации и их соответствии установленным требованиям"]
[]
[]
[null,null,null,null,null,null,22]
[null,null,null,"Параметры формы",null,null,null,"Описание параметров формы"]
[null,null,null,"№ п/п","Информация, подлежащая раскрытию","Единица измерения","Вид деятельности:\r\n  - Холодное водоснабжение. Питьевая вода\r\n\r\nТерритория оказания услуг:\r\n  - без дифференциации\r\n\r\nЦентрализованная система холодного водоснабжения:\r\n  - наименование отсутствует"]
[null,null,null,null,null,null,"Информация"]
[null,null,null,"1","2","3",{"$f":"G1","v":4},{"$f":"H1&\".2\"","v":"5.2"}]
[null,null,null,1,"Количество аварий на системах холодного водоснабжения","ед. на км",0.1,"Указывается количество любых нарушений функционирования системы холодного водоснабжения в расчете на один километр трубопровода."]
[null,null,null,"2","Количество случаев ограничения подачи холодной воды по графику","х","х"]
[null,null,null,"2.1.1","количество случаев ограничения подачи холодной воды по графику для ограничений сроком менее 24 часов","ед.",5,"Указывается суммарное количество ограничений подачи холодной воды по графику в течение отчетного периода. В расчет принимаются ограничения сроком менее 24 часов каждое."]
[null,null,null,"2.1.2","срок действия ограничений подачи холодной воды по графику для ограничений сроком менее 24 часов ","ч",10,"Указывается сумма времени ограничений подачи холодной воды по графику в течение отчетного периода. В расчет принимаются ограничения сроком менее 24 часов каждое."]
[null,null,null,"2.2.1","количество случаев ограничения подачи холодной воды по графику для ограничений сроком 24 часа и более","ед.",0,"Указывается суммарное количество ограничений подачи холодной воды по графику в течение отчетного периода. В расчет принимаются ограничения сроком 24 часа и более каждое."]
[null,null,null,"2.2.2","срок действия ограничений подачи холодной воды по графику для ограничений сроком 24 часа и более","ч",0,"Указывается сумма времени ограничений подачи холодной воды по графику в течение отчетного периода. В расчет принимаются ограничения сроком 24 часа и более каждое."]
[null,null,null,"3","Доля потребителей, затронутых ограничениями подачи холодной воды","x"]
[null,null,null,"3.1","доля потребителей, затронутых ограничениями подачи холодной воды для ограничений сроком менее 24 часов","%",0.5,"Указывается отношение количества потребителей, затронутых как минимум одним ограничением подачи холодной воды по графику длительностью менее 24 часа в течение отчетного периода, и суммарного количества обслуживаемых потребителей. "]
[null,null,null,"3.2","доля потребителей, затронутых ограничениями подачи холодной воды для ограничений сроком менее 24 часа и более","%",0,"Указывается отношение количества потребителей, затронутых как минимум одним ограничением подачи холодной воды по графику длительностью 24 часа и более в течение отчетного периода, и суммарного количества обслуживаемых потребителей."]
[null,null,null,"4","Общее количество проведенных проб качества воды, в том числе по следующим показателям:","ед.",199]
[null,null,null,"4.1","мутность","ед.",199]
[null,null,null,"4.2","цветность","ед.",199]
[null,null,null,"4.3","хлор остаточный общий, в том числе:","ед.",0]
[null,null,null,"4.3.1","хлор остаточный связанный","ед.",0]
[null,null,null,"4.3.2","хлор остаточный свободный","ед.",0]
[null,null,null,"4.4","общие колиформные бактерии","ед.",24]
[null,null,null,"4.5","термотолерантные колиформные бактерии","ед.",24]
[null,null,null,"5","Общее количество проведенных проб, выявивших несоответствие холодной воды санитарным нормам (предельно допустимой концентрации), в том числе по следующим показателям:","ед.",5]
[null,null,null,"5.1","мутность","ед.",0]
[null,null,null,"5.2","цветность","ед.",0]
[null,null,null,"5.3","хлор остаточный общий, в том числе:","ед.",0]
[null,null,null,"5.3.1","хлор остаточный связанный","ед.",0]
[null,null,null,"5.3.2","хлор остаточный свободный","ед.",0]
[null,null,null,"5.4","общие колиформные бактерии","ед.",0]
[null,null,null,"5.5","термотолерантные колиформные бактерии","ед.",0]
[null,null,null,"6","Доля исполненных в срок договоров о подключении","%",100,"Указывается процент общего количества заключенных договоров о подключении."]
[null,null,null,"7","Средняя продолжительность рассмотрения заявлений о подключении","дн.",12]
[null,null,null,"8","О результатах технического обследования централизованных систем холодного водоснабжения, в том числе:","x","https://portal.eias.ru/Portal/DownloadPage.aspx?type=12&guid=b5f63b4e-38b4-4d40-a417-897f82bfa7a1","Указывается ссылка на документ, предварительно загруженный в хранилище файлов ФГИС ЕИАС."]
[null,null,null,"8.1","о фактических значениях показателей технико-экономического состояния централизованных систем холодного водоснабжения, включая значения показателей физического износа и энергетической эффективности объектов централизованных систем холодного водоснабжения.","x","https://portal.eias.ru/Portal/DownloadPage.aspx?type=12&guid=b5f63b4e-38b4-4d40-a417-897f82bfa7a1","Указывается ссылка на документ, предварительно загруженный в хранилище файлов ФГИС ЕИАС."]

{"sheet":"Форма 1.0.1 | Форма 2.9","index":14,"n_rows":20,"n_cols":7,"rows_kept":20,"cut":false,"hidden":true,"merged":[[19,4,19,5],[4,3,4,6],[5,3,5,6],[7,3,7,6],[8,3,8,5],[8,6,9,6]]}
[null,null,null,null,null,null,4]
[]
[]
[]
[null,null,null,"Форма 1.0.1 Основные параметры раскрываемой информации 1"]
[null,null,null,{"$f":"IF(org=0,\"Не определено\",org)","v":"ООО \"Лемэк\""}]
[]
[null,null,22,"Форма 1.0.1"]
[null,null,null,"Параметры формы",null,null,"Описание параметров формы"]
["\\",null,null,"№ п/п",null,"Информация"]
[null,null,null,"1",2,3,4]
[null,null,null,1,"Дата заполнения/внесения изменений",{"$f":"IF(form_up_date=\"\",\"\",form_up_date)","v":"30.04.2021"},"Указывается календарная дата первичного заполнения или внесения изменений в форму в виде «ДД.ММ.ГГГГ»."]
[null,null,null,"2.1","Наименование централизованной системы коммунальной инфраструктуры","наименование отсутствует","Указывается наименование централизованной системы холодного водоснабжения/горячего водоснабжения/водоотведения/теплоснабжения, к которой относится размещаемая информация.\nВ случае наличия нескольких централизованных систем коммунальной инфраструктуры, информация по каждой из них указывается в отдельной строке. "]
[null,null,null,"3.1","Наименование регулируемого вида деятельности","Холодное водоснабжение. Питьевая вода","Указывается наименование вида регулируемой деятельности."]
[null,null,null,"4.1","Территория оказания услуги по регулируемому виду деятельности","x"]
[null,null,null,{"$f":"D15&\".1\"","v":"4.1.1"},"Субъект РФ",{"$f":"IF(region_name=\"\",\"\",region_name)","v":"Ленинградская область"},"Указывается наименование субъекта Российской Федерации"]
[null,null,null,"4.1.1.1","муниципальный район","Ломоносовский муниципальный район","Указывается наименование муниципального района, на территории которого организация оказывает услуги по регулируемому виду деятельности."]
[null,null,null,"4.1.1.1.1","муниципальное образование","Аннинское (41630152)","Указывается наименование и код муниципального района, муниципального образования в соответствии с Общероссийским классификатором территорий муниципальных образований (далее - ОКТМО), входящего в муниципальный район, на территории которого организация оказывает услуги по регулируемому виду деятельности.\nВ случае оказания услуг по регулируемому виду деятельности на территории нескольких муниципальных районов (муниципальных образований) данные по каждому их них указываются в отдельной строке."]
[]
[null,null,null,null,"  1 Информация по данной форме публикуется при раскрытии информации по каждой из форм."]

{"sheet":"Форма 2.9","index":15,"n_rows":81,"n_cols":13,"rows_kept":81,"cut":false,"hidden":true,"merged":[[4,5,4,8],[80,6,80,12],[79,6,79,12],[7,8,7,10],[6,12,8,12],[6,5,6,11],[67,1,71,1],[72,1,76,1],[7,5,8,5],[7,6,8,6],[7,7,8,7],[19,1,21,1],[57,1,59,1],[62,1,66,1],[22,1,24,1]]}
[]
[]
[]
[]
[null,null,null,null,null,"Информация об инвестиционных программах регулируемой организации1"]
[]
[null,null,null,null,null,"Параметры формы",null,null,null,null,null,null,"Описание параметров формы"]
[null,null,null,null,null,"№ п/п","Наименование параметра","Единица измерения"]
[null,null,null,null,null,null,null,null,"Инвестиционная программа в целом","Мероприятие2","Добавить мероприятие"]
[null,null,null,null,null,"1","2","3","4","4.0"]
[null,null,null,null,null,1,"Наименование инвестиционной программы/мероприятия","x"]
[null,null,null,null,null,2,"Дата утверждения инвестиционной программы","x",null,"x",null,null,"Дата утверждения инвестиционной программы указывается в виде «ДД.ММ.ГГГГ»."]
[null,null,null,null,null,"2.1","Дата изменения инвестиционной программы","x",null,"x",null,null,"Дата изменения инвестиционной программы указывается (в случае наличия изменения) в виде «ДД.ММ.ГГГГ»."]
[null,null,null,null,null,"3","Цель инвестиционной программы","x",null,"x",null,null,"Цель инвестиционной программы определяется из перечня: Автоматизация (с уменьшением штата); Уменьшение удельных затрат (повышение коэффициента полезного действия); Уменьшение издержек на производство; Снижение аварийности; Прочее\nВозможен выбор нескольких пунктов."]
[null,null,null,null,null,"4","Наименование уполномоченного органа, утвердившего программу","x",null,"x",null,null,"Указывается уполномоченный в соответствии с законодательством Российской Федерации орган власти, утвердивший инвестиционную программу."]
[null,null,null,null,null,"5","Наименование органа местного самоуправления, согласовавшего инвестиционную программу","x",null,"x"]
[null,null,null,null,null,"6","Срок начала реализации инвестиционной программы/мероприятия","x",null,null,null,null,"Срок начала реализации инвестиционной программы/мероприятия указывается в виде «ДД.ММ.ГГГГ»."]
[null,null,null,null,null,"7","Срок окончания реализации инвестиционной программы/мероприятия","x",null,null,null,null,"Срок окончания реализации инвестиционной программы/мероприятия указывается в виде «ДД.ММ.ГГГГ»."]
[null,null,null,null,null,"8","Потребность в финансовых средствах, необходимых для реализации инвестиционной программы, в том числе с разбивкой по годам, мероприятиям и источникам финансирования инвестиционной программы:","тыс. руб.",{"$f":"SUM(J19:K19)","v":0},{"$f":"SUMIF(List06_flag_year,\"y\",J20:J26)","v":0},null,null,"Указывается суммарная потребность в финансовых средствах, необходимых для реализации инвестиционной программы, по всем источникам финансирования."]
[null,"8.0",null,null,null,{"$f":"B20","v":"8.0"},null,"тыс. руб.",{"$f":"SUM(I21:I22)","v":0},{"$f":"SUM(J21:J22)","v":0},"y",null,"Год реализации инвестиционной программы/мероприятия должен содержаться в сроке реализации инвестиционной программы, определенном в пунктах 6 и 7 данной формы.\nВ случае реализации инвестиционной программы/мероприятия в течение нескольких лет информация по каждому году указывается в отдельных строках."]
[null,null,1,null,null,{"$f":"B20&\".\"&C21","v":"8.0.1"},null,"тыс. руб.",null,null,"i",null,"Вид источника финансирования определяется из перечня: Кредиты банков; Кредиты иностранных банков; Заемные средства др. организаций; Федеральный бюджет; Бюджет субъекта Российской Федерации; Бюджет муниципального образования; Средства внебюджетных фондов; Прибыль, направленная на инвестиции; Амортизация; Инвестиционная надбавка к тарифу; Плата за подключение (технологическое присоединение);  Прочие средства.\nВ случае наличия нескольких источников финансирования информация по каждому из них указывается в отдельных строках."]
[null,null,null,null,null,null,"Добавить источники"]
[null,"8.1",null,null,null,{"$f":"B23","v":"8.1"},null,"тыс. руб.",{"$f":"SUM(I24:I25)","v":0},{"$f":"SUM(J24:J25)","v":0},"y",null,"Год реализации инвестиционной программы/мероприятия должен содержаться в сроке реализации инвестиционной программы, определенном в пунктах 6 и 7 данной формы.\nВ случае реализации инвестиционной программы/мероприятия в течение нескольких лет информация по каждому году указывается в отдельных строках."]
[null,null,1,null,null,{"$f":"B23&\".\"&C24","v":"8.1.1"},null,"тыс. руб.",null,null,"i",null,"Вид источника финансирования определяется из перечня: Кредиты банков; Кредиты иностранных банков; Заемные средства др. организаций; Федеральный бюджет; Бюджет субъекта Российской Федерации; Бюджет муниципального образования; Средства внебюджетных фондов; Прибыль, направленная на инвестиции; Амортизация; Инвестиционная надбавка к тарифу; Плата за подключение (технологическое присоединение);  Прочие средства.\nВ случае наличия нескольких источников финансирования информация по каждому из них указывается в отдельных строках."]
[null,null,null,null,null,null,"Добавить источники"]
[null,null,null,null,null,null,"Добавить год"]
[null,null,null,null,null,"9","Целевые показатели инвестиционной программы","x","x","x"]
[null,null,null,null,null,"9.1","Срок окупаемости","x","x","x"]
[null,null,null,null,null,"9.1.1","Факт","лет"]
[null,null,null,null,null,"9.1.2","План","лет"]
[null,null,null,null,null,"9.2","Перебои в снабжении потребителей","x","x","x"]
[null,null,null,null,null,"9.2.1","Факт","час./чел.",null,null,null,null,"Указывается фактическое значение отношения суммы произведений продолжительности отключений и количества пострадавших потребителей от каждого из этих отключений к количеству потребителей, проживающих в домах, в которых проходили отключения в отчетном периоде."]
[null,null,null,null,null,"9.2.2","План","час./чел.",null,null,null,null,"Указывается плановое значение отношения суммы произведений\nпродолжительности отключений и количества пострадавших потребителей от каждого из этих отключений к количеству потребителей, проживающих в домах, в которых проходили отключения в отчетном периоде."]
[null,null,null,null,null,"9.3","Продолжительность (бесперебойность) поставки товаров и услуг","x","x","x"]
[null,null,null,null,null,"9.3.1","Факт","час./день",null,null,null,null,"Указывается фактическое значение отношения количества часов предоставления услуг к количеству календарных дней в отчетном периоде."]
[null,null,null,null,null,"9.3.2","План","час./день",null,null,null,null,"Указывается плановое значение отношения количества часов предоставления услуг к количеству календарных дней в отчетном периоде."]
[null,null,null,null,null,"9.4","Доля потерь и неучтенного потребления ","x","x","x"]
[null,null,null,null,null,"9.4.1","Факт","%",null,null,null,null,"Указывается фактическое значение доли потерь и неучтенного потребления воды в общем объеме воды, поданной в водопроводную сеть в отчетном периоде."]
[null,null,null,null,null,"9.4.2","План","%",null,null,null,null,"Указывается плановое значение доли потерь и неучтенного потребления воды в общем объеме воды, поданной в водопроводную сеть в отчетном периоде."]
[null,null,null,null,null,"9.5","Обеспеченность потребления товаров и услуг приборами учета","x","x","x"]
[null,null,null,null,null,"9.5.1","Факт","%"]
[null,null,null,null,null,"9.5.2","План","%"]
[null,null,null,null,null,"9.6","Численность населения, получающего услуги данной организации","x","x","x"]
[null,null,null,null,null,"9.6.1","Факт","чел.",null,null,null,null,"Указывается фактическое значение численности населения, проживающего в многоквартирных и жилых домах, подключенных к системе холодного водоснабжения в отчетном периоде."]
[null,null,null,null,null,"9.6.2","План","чел.",null,null,null,null,"Указывается плановое значение численности населения, проживающего в многоквартирных и жилых домах, подключенных к системе холодного водоснабжения в отчетном периоде."]
[null,null,null,null,null,"9.7","Удельное водопотребление","x","x","x"]
[null,null,null,null,null,"9.7.1","Факт","куб. м/чел.",null,null,null,null,"Указывается фактическое значение объема потребления воды в расчете на одного человека, получающего услуги организации в отчетном периоде."]
[null,null,null,null,null,"9.7.2","План","куб. м/чел.",null,null,null,null,"Указывается плановое значение объема потребления воды в расчете на одного человека, получающего услуги организации в отчетном периоде."]
[null,null,null,null,null,"9.8","Расход электроэнергии на поставку воды","x","x","x"]
[null,null,null,null,null,"9.8.1","Факт","кВт·ч /куб. м",null,null,null,null,"Указывается фактическое значение отношения расходов электроэнергии на производство/транспортировку воды к объему производства/транспортировки воды в отчетном периоде."]
[null,null,null,null,null,"9.8.2","План","кВт·ч /куб. м",null,null,null,null,"Указывается плановое значение отношения расходов электроэнергии на    \nпроизводство/транспортировку воды к объему производства/транспортировки воды в отчетном периоде."]
[null,null,null,null,null,"9.9","Количество аварий","x","x","x"]
[null,null,null,null,null,"9.9.1","Факт","ед./км",null,null,null,null,"Указывается фактическое значение отношения количества аварий на системах коммунальной инфраструктуры к протяженности сетей в отчетном периоде."]
[null,null,null,null,null,"9.9.2","План","ед./км",null,null,null,null,"Указывается плановое значение отношения количества аварий на системах коммунальной инфраструктуры к протяженности сетей в отчетном периоде."]
[null,null,null,null,null,"9.10","Производительность труда","x","x","x",null,null,"В случае наличия дополнительных целевых показателей инвестиционной программы информация по ним указывается в отдельных строках."]
[null,null,null,null,null,"9.10.1","Факт","тыс. руб./чел.",null,null,null,null,"Указывается фактическое значение отношение фонда оплаты труда к численности всех рабочих основного вида деятельности организации.  \nВ число рабочих основного вида деятельности включаются рабочие, занятые на производственных процессах по подъему, очистке и транспортировке воды."]
[null,null,null,null,null,"9.10.2","План","тыс. руб./чел.",null,null,null,null,"Указывается плановое значение отношение фонда оплаты труда к численности всех рабочих основного вида деятельности организации.  \nВ число рабочих основного вида деятельности включаются рабочие, занятые на производственных процессах по подъему, очистке и транспортировке воды."]
[null,"9.10",null,null,null,{"$f":"B58","v":"9.10"},null,null,"x","x"]
[null,null,null,null,null,{"$f":"B58&\".1\"","v":"9.10.1"},"Факт",{"$f":"IF(H58=\"\",\"x\",H58)","v":"x"}]
[null,null,null,null,null,{"$f":"B58&\".2\"","v":"9.10.2"},"План",{"$f":"IF(H58=\"\",\"x\",H58)","v":"x"}]
[null,null,null,null,null,null,"Добавить показатель"]
[null,"print",null,null,null,"10","Использование инвестиционных средств за отчетный период","x","x","x"]
[null,"10.0",null,null,null,{"$f":"B63","v":"10.0"},"Использовано инвестиционных средств всего в отчетном периоде, в том числе:","тыс. руб.",{"$f":"SUM(I64:I67)","v":0},{"$f":"SUM(J64:J67)","v":0},null,null,"Указывается сумма использованных инвестиционных средства по всем источникам финансирования в отчетном периоде."]
[null,null,null,null,null,{"$f":"B63&\".1\"","v":"10.0.1"},"I квартал","тыс. руб.",{"$f":"SUMIF($G$68:$G$78,$G64,I$68:I$78)","v":0},0,null,null,"Указывается сумма использованных инвестиционных средств в I квартале отчетного периода по всем источникам финансирования."]
[null,null,null,null,null,{"$f":"B63&\".2\"","v":"10.0.2"},"II квартал","тыс. руб.",0,0,null,null,"Указывается сумма использованных инвестиционных средств в II квартале отчетного периода по всем источникам финансирования."]
[null,null,null,null,null,{"$f":"B63&\".3\"","v":"10.0.3"},"III квартал","тыс. руб.",0,0,null,null,"Указывается сумма использованных инвестиционных средств в III квартале отчетного периода по всем источникам финансирования."]
[null,null,null,null,null,{"$f":"B63&\".4\"","v":"10.0.4"},"IV квартал","тыс. руб.",0,0,null,null,"Указывается сумма использованных инвестиционных средств в IV квартале отчетного периода по всем источникам финансирования."]
[null,"10.0",null,null,null,{"$f":"B68","v":"10.0"},null,"тыс. руб.",{"$f":"SUM(I69:I72)","v":0},{"$f":"SUM(J69:J72)","v":0},{"$f":"G68","v":0},null,"Вид источника финансирования определяется из перечня: Кредиты банков; Кредиты иностранных банков; Заемные средства др. организаций; Федеральный бюджет; Бюджет субъекта Российской Федерации; Бюджет муниципального образования; Средства внебюджетных фондов; Прибыль, направленная на инвестиции; Амортизация; Инвестиционная надбавка к тарифу; Плата за подключение (технологическое присоединение); Прочие средства.\nВ случае наличия нескольких источников финансирования информация по каждому из них указывается в отдельных строках."]
[null,null,null,null,null,{"$f":"B68&\".1\"","v":"10.0.1"},"I квартал","тыс. руб."]
[null,null,null,null,null,{"$f":"B68&\".2\"","v":"10.0.2"},"II квартал","тыс. руб."]
[null,null,null,null,null,{"$f":"B68&\".3\"","v":"10.0.3"},"III квартал","тыс. руб."]
[null,null,null,null,null,{"$f":"B68&\".4\"","v":"10.0.4"},"IV квартал","тыс. руб."]
[null,"10.1",null,null,null,{"$f":"B73","v":"10.1"},null,"тыс. руб.",{"$f":"SUM(I74:I77)","v":0},{"$f":"SUM(J74:J77)","v":0},{"$f":"G73","v":0},null,"Вид источника финансирования определяется из перечня: Кредиты банков; Кредиты иностранных банков; Заемные средства др. организаций; Федеральный бюджет; Бюджет субъекта Российской Федерации; Бюджет муниципального образования; Средства внебюджетных фондов; Прибыль, направленная на инвестиции; Амортизация; Инвестиционная надбавка к тарифу; Плата за подключение (технологическое присоединение); Прочие средства.\nВ случае наличия нескольких источников финансирования информация по каждому из них указывается в отдельных строках."]
[null,null,null,null,null,{"$f":"B73&\".1\"","v":"10.1.1"},"I квартал","тыс. руб."]
[null,null,null,null,null,{"$f":"B73&\".2\"","v":"10.1.2"},"II квартал","тыс. руб."]
[null,null,null,null,null,{"$f":"B73&\".3\"","v":"10.1.3"},"III квартал","тыс. руб."]
[null,null,null,null,null,{"$f":"B73&\".4\"","v":"10.1.4"},"IV квартал","тыс. руб."]
[null,null,null,null,null,null,"Добавить источники"]
[]
[null,null,null,null,null,1,"Информация раскрывается в случае, если регулируемая организация выполняет или планирует выполнение инвестиционной программы в отчетном периоде."]
[null,null,null,null,null,2,"В случае выполнения нескольких мероприятий информация по каждому из них указывается в отдельной колонке"]

{"sheet":"Форма 1.0.2","index":16,"n_rows":15,"n_cols":13,"rows_kept":15,"cut":false,"hidden":true,"merged":[[11,10,12,10],[14,4,14,9],[4,3,4,9],[7,3,7,9],[7,10,9,10],[8,3,9,3],[8,4,8,5],[8,6,8,9]]}
[]
[]
[]
[]
[null,null,null,"Форма 1.0.2 Информация о публикации в печатных изданиях 2"]
[]
[]
[null,null,null,"Параметры формы",null,null,null,null,null,null,"Описание параметров формы"]
[null,null,null,"№ п/п","Форма публикации",null,"Официальное печатное издание"]
[null,null,null,null,"Номер","Наименование","Наименование","Номер","Дата выпуска","Ссылка на документ"]
[null,null,null,"1","2","3","4","5","6","7","8"]
["3","",null,"1",null,null,null,null,null,null,"В колонке «Дата выпуска» дата выпуска печатного издания указывается в виде «ДД.ММ.ГГГГ».\nВ колонке «Ссылка на документ» указывается ссылка на отсканированную копию печатного издания, предварительно загруженную в хранилище федеральной государственной информационной системы «Единая информационно-аналитическая система «Федеральный орган регулирования - региональные органы регулирования - субъекты регулирования» (далее – ФГИС ЕИАС), с опубликованной информацией.\nВ случае публикации информации в нескольких печатных изданиях информация по каждому из них указывается в отдельной строке.",null,{"$f":"IF(ISERROR(INDEX(kind_of_nameforms,MATCH(E12,kind_of_forms,0),1)),\"\",INDEX(kind_of_nameforms,MATCH(E12,kind_of_forms,0),1))","v":""}]
[null,null,null,null,"Добавить строку"]
[]
[null,null,null,null,"2 В данной форме публикуется информация по каждой из форм раскрытия, данные в которой относятся к муниципальному образованию, в котором отсутствует доступ в информационно-телекоммуникационную сеть «Интернет» (далее – сеть «Интернет»)."]

{"sheet":"Сведения об изменении","index":17,"n_rows":14,"n_cols":5,"rows_kept":14,"cut":false,"hidden":true,"merged":[[6,3,6,4],[7,3,7,4]]}
[]
[]
[]
[]
[]
[]
[null,null,null,"Сведения об изменениях в первоначально опубликованной информации"]
[null,null,null,{"$f":"IF(org=0,\"Не определено\",org)","v":"ООО \"Лемэк\""}]
[]
[null,null,null,"№ п/п","Сведения"]
[null,null,null,"1","2"]
[null,null,null,0]
[null,null,null,1]
[null,null,null,null,"Добавить строку"]

{"sheet":"Комментарии","index":18,"n_rows":13,"n_cols":5,"rows_kept":13,"cut":false,"hidden":true,"merged":[[6,3,6,4],[7,3,7,4]]}
[]
[]
[]
[]
[]
[]
[null,null,null,"Комментарии"]
[null,null,null,{"$f":"IF(org=0,\"Не определено\",org)","v":"ООО \"Лемэк\""}]
[]
[null,null,null,"№ п/п","Комментарий"]
[null,null,null,"1","2"]
[null,null,null,0]
[null,null,null,null,"Добавить"]

{"sheet":"Проверка","index":19,"n_rows":4,"n_cols":5,"rows_kept":4,"cut":false,"hidden":true,"merged":[[1,1,1,4]]}
[]
[null,"Результат проверки"]
[]
[null,"Ссылка1","Ссылка2","Причина","Статус"]

{"sheet":"modReestr","index":20,"n_rows":0,"n_cols":0,"rows_kept":0,"cut":false,"hidden":true,"merged":[]}

{"sheet":"AllSheetsInThisWorkbook","index":21,"n_rows":43,"n_cols":2,"rows_kept":43,"cut":false,"hidden":true,"merged":[]}
["Расчетные листы","Скрытые листы"]
["Инструкция","modProv"]
["Лог обновления","modReestr"]
["Титульный","AllSheetsInThisWorkbook"]
["Территории","modCheckCyan"]
["Дифференциация","modInfo"]
["Форма 1.0.1 | Форма 2.7.1","TEHSHEET"]
["Форма 2.7.1","modfrmSelectData"]
["Форма 2.7.2","modList06"]
["Форма 2.8","modList01"]
["Форма 2.9","modList05"]
["Форма 1.0.2","modList08"]
["Сведения об изменении","et_union_hor"]
["Комментарии","et_union_vert"]
["Проверка","modList00"]
[null,"modList02"]
[null,"modList03"]
[null,"modList04"]
[null,"modList07"]
[null,"modList09"]
[null,"modHTTP"]
[null,"modfrmRegion"]
[null,"MR_LIST"]
[null,"REESTR_VT"]
[null,"REESTR_VED"]
[null,"modfrmReestrObj"]
[null,"DataOrg"]
[null,"modfrmReestr"]
[null,"modUpdTemplMain"]
[null,"REESTR_ORG"]
[null,"modClassifierValidate"]
[null,"modHyp"]
[null,"modfrmDateChoose"]
[null,"modComm"]
[null,"modThisWorkbook"]
[null,"REESTR_MO"]
[null,"REESTR_MO_FILTER"]
[null,"modfrmReestrMR"]
[null,"modServiceModule"]
[null,"modfrmCheckUpdates"]
[null,"REESTR_DS"]
[null,"REESTR_CHS"]
[null,"REESTR_LINK"]

{"sheet":"modCheckCyan","index":22,"n_rows":90,"n_cols":1,"rows_kept":90,"cut":false,"hidden":true,"merged":[]}
[]
[{"$f":"IF(Дифференциация!$E$22=\"\",1,0)","v":0}]
[{"$f":"IF('Сведения об изменении'!$E$13=\"\",1,0)","v":1}]
[{"$f":"IF(Территории!$E$12=\"\",1,0)","v":0}]
[{"$f":"IF('Форма 2.7.1'!$G$17=\"\",1,0)","v":0}]
[{"$f":"IF('Форма 2.7.1'!$G$19=\"\",1,0)","v":0}]
[{"$f":"IF('Форма 2.7.1'!$G$20=\"\",1,0)","v":0}]
[{"$f":"IF('Форма 2.7.1'!$G$21=\"\",1,0)","v":0}]
[{"$f":"IF('Форма 2.7.1'!$G$22=\"\",1,0)","v":0}]
[{"$f":"IF('Форма 2.7.1'!$G$23=\"\",1,0)","v":0}]
[{"$f":"IF('Форма 2.7.1'!$G$24=\"\",1,0)","v":0}]
[{"$f":"IF('Форма 2.7.1'!$G$25=\"\",1,0)","v":0}]
[{"$f":"IF('Форма 2.7.1'!$G$26=\"\",1,0)","v":0}]
[{"$f":"IF('Форма 2.7.1'!$G$27=\"\",1,0)","v":0}]
[{"$f":"IF('Форма 2.7.1'!$G$28=\"\",1,0)","v":0}]
[{"$f":"IF('Форма 2.7.1'!$G$29=\"\",1,0)","v":0}]
[{"$f":"IF('Форма 2.7.1'!$G$30=\"\",1,0)","v":0}]
[{"$f":"IF('Форма 2.7.1'!$G$31=\"\",1,0)","v":0}]
[{"$f":"IF('Форма 2.7.1'!$G$32=\"\",1,0)","v":0}]
[{"$f":"IF('Форма 2.7.1'!$G$33=\"\",1,0)","v":0}]
[{"$f":"IF('Форма 2.7.1'!$G$34=\"\",1,0)","v":0}]
[{"$f":"IF('Форма 2.7.1'!$G$35=\"\",1,0)","v":0}]
[{"$f":"IF('Форма 2.7.1'!$G$36=\"\",1,0)","v":0}]
[{"$f":"IF('Форма 2.7.1'!$G$37=\"\",1,0)","v":0}]
[{"$f":"IF('Форма 2.7.1'!$G$38=\"\",1,0)","v":0}]
[{"$f":"IF('Форма 2.7.1'!$G$40=\"\",1,0)","v":0}]
[{"$f":"IF('Форма 2.7.1'!$G$46=\"\",1,0)","v":0}]
[{"$f":"IF('Форма 2.7.1'!$G$47=\"\",1,0)","v":0}]
[{"$f":"IF('Форма 2.7.1'!$G$48=\"\",1,0)","v":0}]
[{"$f":"IF('Форма 2.7.1'!$G$49=\"\",1,0)","v":0}]
[{"$f":"IF('Форма 2.7.1'!$G$50=\"\",1,0)","v":0}]
[{"$f":"IF('Форма 2.7.1'!$G$51=\"\",1,0)","v":0}]
[{"$f":"IF('Форма 2.7.1'!$G$52=\"\",1,0)","v":0}]
[{"$f":"IF('Форма 2.7.1'!$G$53=\"\",1,0)","v":0}]
[{"$f":"IF('Форма 2.7.1'!$G$55=\"\",1,0)","v":0}]
[{"$f":"IF('Форма 2.7.1'!$G$56=\"\",1,0)","v":0}]
[{"$f":"IF('Форма 2.7.1'!$G$57=\"\",1,0)","v":0}]
[{"$f":"IF('Форма 2.7.1'!$G$58=\"\",1,0)","v":0}]
[{"$f":"IF('Форма 2.7.1'!$G$59=\"\",1,0)","v":0}]
[{"$f":"IF('Форма 2.7.1'!$G$60=\"\",1,0)","v":0}]
[{"$f":"IF('Форма 2.7.1'!$G$61=\"\",1,0)","v":0}]
[{"$f":"IF('Форма 2.7.1'!$G$62=\"\",1,0)","v":0}]
[{"$f":"IF('Форма 2.7.1'!$G$63=\"\",1,0)","v":0}]
[{"$f":"IF('Форма 2.7.1'!$G$64=\"\",1,0)","v":0}]
[{"$f":"IF('Форма 2.7.1'!$G$65=\"\",1,0)","v":0}]
[{"$f":"IF('Форма 2.7.1'!$G$66=\"\",1,0)","v":0}]
[{"$f":"IF('Форма 2.8'!$G$13=\"\",1,0)","v":0}]
[{"$f":"IF('Форма 2.8'!$G$14=\"\",1,0)","v":0}]
[{"$f":"IF('Форма 2.8'!$G$15=\"\",1,0)","v":0}]
[{"$f":"IF('Форма 2.8'!$G$16=\"\",1,0)","v":0}]
[{"$f":"IF('Форма 2.8'!$G$18=\"\",1,0)","v":0}]
[{"$f":"IF('Форма 2.8'!$G$19=\"\",1,0)","v":0}]
[{"$f":"IF('Форма 2.8'!$G$20=\"\",1,0)","v":0}]
[{"$f":"IF('Форма 2.8'!$G$21=\"\",1,0)","v":0}]
[{"$f":"IF('Форма 2.8'!$G$22=\"\",1,0)","v":0}]
[{"$f":"IF('Форма 2.8'!$G$23=\"\",1,0)","v":0}]
[{"$f":"IF('Форма 2.8'!$G$24=\"\",1,0)","v":0}]
[{"$f":"IF('Форма 2.8'!$G$25=\"\",1,0)","v":0}]
[{"$f":"IF('Форма 2.8'!$G$26=\"\",1,0)","v":0}]
[{"$f":"IF('Форма 2.8'!$G$27=\"\",1,0)","v":0}]
[{"$f":"IF('Форма 2.8'!$G$28=\"\",1,0)","v":0}]
[{"$f":"IF('Форма 2.8'!$G$29=\"\",1,0)","v":0}]
[{"$f":"IF('Форма 2.8'!$G$30=\"\",1,0)","v":0}]
[{"$f":"IF('Форма 2.8'!$G$31=\"\",1,0)","v":0}]
[{"$f":"IF('Форма 2.8'!$G$32=\"\",1,0)","v":0}]
[{"$f":"IF('Форма 2.8'!$G$33=\"\",1,0)","v":0}]
[{"$f":"IF('Форма 2.8'!$G$34=\"\",1,0)","v":0}]
[{"$f":"IF('Форма 2.8'!$G$35=\"\",1,0)","v":0}]
[{"$f":"IF('Форма 2.8'!$G$36=\"\",1,0)","v":0}]
[{"$f":"IF('Форма 2.8'!$G$37=\"\",1,0)","v":0}]
[{"$f":"IF('Форма 2.8'!$G$38=\"\",1,0)","v":0}]
[{"$f":"IF('Форма 2.8'!$G$39=\"\",1,0)","v":0}]
[{"$f":"IF('Форма 2.8'!$G$11=\"\",1,0)","v":0}]
[{"$f":"IF('Форма 2.9'!$I$11=\"\",1,0)","v":1}]
[{"$f":"IF('Форма 2.9'!$I$12=\"\",1,0)","v":1}]
[{"$f":"IF('Форма 2.9'!$I$13=\"\",1,0)","v":1}]
[{"$f":"IF('Форма 2.9'!$I$15=\"\",1,0)","v":1}]
[{"$f":"IF('Форма 2.9'!$I$16=\"\",1,0)","v":1}]
[{"$f":"IF('Форма 2.9'!$I$17=\"\",1,0)","v":1}]
[{"$f":"IF('Форма 2.9'!$I$18=\"\",1,0)","v":1}]
[{"$f":"IF('Форма 2.9'!$G$23=\"\",1,0)","v":1}]
[{"$f":"IF('Форма 2.9'!$G$24=\"\",1,0)","v":1}]
[{"$f":"IF('Форма 2.9'!$I$24=\"\",1,0)","v":1}]
[{"$f":"IF('Форма 2.9'!$G$73=\"\",1,0)","v":1}]
[{"$f":"IF('Форма 2.9'!$I$74=\"\",1,0)","v":1}]
[{"$f":"IF('Форма 2.9'!$I$75=\"\",1,0)","v":1}]
[{"$f":"IF('Форма 2.9'!$I$76=\"\",1,0)","v":1}]
[{"$f":"IF('Форма 2.9'!$I$77=\"\",1,0)","v":1}]
[{"$f":"IF('Форма 2.7.1'!$E$69=\"\",1,0)","v":0}]
[{"$f":"IF('Форма 2.7.1'!$E$70=\"\",1,0)","v":0}]

{"sheet":"modInfo","index":23,"n_rows":11,"n_cols":2,"rows_kept":11,"cut":false,"hidden":true,"merged":[[4,3,4,10],[0,3,0,10],[1,3,1,10],[2,3,2,10],[3,3,3,10]]}
[null,"Территории"]
[1,"Наименование территории оказания услуг для целей идентификации"]
[2,"Муниципальные районы и муниципальные образования, на территории которых осуществляется оказание услуг"]
[null,"Дифференциация"]
[1,"В случае, если регулируемая организация осуществляет несколько видов деятельности, информация о которых подлежит раскрытию, информация по каждому виду деятельности раскрывается отдельно."]
[2,"Поле заполняется выбором значений из списка. Если значений для выбора нет - убедитесь, что лист \"Территории\" заполнен."]
[3,"Условное наименование централизованной системы коммунальной инфраструктуры для целей идентификации."]
[4,"В случае, если регулируемыми организациями оказываются услуги по нескольким технологически не связанным между собой  централизованным системам коммунальной инфраструктуры и если в отношении указанных централизованных систем устанавливаются различные тарифы, то информация раскрывается отдельно по каждой централизованной системе коммунальной инфраструктуры."]
[null,"Сведения об изменении"]
[1,"Лист заполняется в случае, если на Титульном листе в поле \"Тип отчета\" выбрано значение «Изменения в раскрытой ранее информации»."]
[null,"Нет доступных обновлений, версия отчёта актуальна"]

{"sheet":"TEHSHEET","index":24,"n_rows":87,"n_cols":23,"rows_kept":87,"cut":false,"hidden":true,"merged":[[0,18,0,19],[0,21,0,22]]}
["REGION",null,"year_list","logical","Месяц\n(MONTH)","Квартал\n(QUARTER)","Месяц\n(kind_of_publication)","Единица измерения объема оказываемых услуг ГВС\n/kind_of_unit_GVS/","Вид тарифа\n/list_of_tariff/","mr_id","версия шаблона\n (DocProp_Version)","0.1","Тип отчета\ndata_type",null,"Источники финансирования\n/source_of_funding/","цель инвестиционной программы /kind_of_purchase_method/",null,null,"Перечень форм\n(kind_of_forms)",null,null,"цель инвестиционной программы /objective_of_IPR/"]
["Алтайский край",null,2017,"да","январь","I квартал","На официальном сайте организации","тыс.куб.м/сутки",null,52,"код шаблона\n(DocProp_TemplateCode)","FAS.JKH.OPEN.INFO.BALANCE.HVS","первичное раскрытие информации",null,"кредиты банков","Торги/аукционы",null,null,"Форма 1.0.1","Основные параметры раскрываемой информации",null,"автоматизация (с уменьшением штата)",false]
["Амурская область",null,2018,"нет","февраль","II квартал","На сайте регулирующего органа","Гкал/час","Без дифференциации","sys_id","сфера\n(TSphere)","ХВС","изменения в раскрытой ранее информации",null,"кредиты иностранных банков","Прямые договора без торгов",null,null,"Форма 2.7.1","Информация об основных показателях финансово-хозяйственной деятельности регулируемой организации, включая структуру основных производственных затрат (в части регулируемой деятельности)",null,"уменьшение удельных затрат (повышение КПД)",false]
["Архангельская область",null,2019,null,"март","III квартал",null,"куб.м/час",null,104,"сфера(латиница)\n(TSphere_trans)","VS",null,null,"заемные средства др. организаций","Прочее",null,null,"Форма 2.7.2","Информация о расходах на капитальный и текущий ремонт основных производственных средств, расходах на услуги производственного характера",null,"уменьшение издержек на производство",false]
["Астраханская область",null,2020,null,"апрель","IV квартал",null,null,null,null,"сфера расширено\n(TSphere_full)",null,null,null,"федеральный бюджет",null,null,null,"Форма 2.8","Информация об основных потребительских характеристиках регулируемых товаров и услуг регулируемой организации и их соответствии установленным требованиям",null,"снижение аварийности",false]
["Белгородская область",null,null,null,"май",null,null,null,null,null,null,null,null,null,"бюджет субъекта Российской Федерации",null,null,null,"Форма 2.9","Информация об инвестиционных программах регулируемой организации",null,"прочее",false]
["Брянская область",null,null,null,"июнь",null,null,null,null,null,null,null,null,null,"бюджет муниципального образования"]
["Владимирская область",null,null,null,"июль",null,null,null,null,null,"true",null,null,null,"средства внебюджетных фондов"]
["Волгоградская область",null,null,null,"август",null,null,null,null,null,null,null,null,null,"прибыль, направленная на инвестиции"]
["Вологодская область",null,null,null,"сентябрь",null,null,null,null,null,null,null,null,null,"амортизация"]
["Воронежская область",null,null,null,"октябрь",null,null,null,null,null,null,null,null,null,"инвестиционная надбавка к тарифу"]
["г.Байконур",null,null,null,"ноябрь",null,null,null,null,null,null,null,null,null,"плата за подключение (технологическое присоединение)"]
["г. Москва",null,null,null,"декабрь",null,null,null,null,null,null,null,null,null,"прочие средства"]
["г.Санкт-Петербург"]
["г.Севастополь"]
["Еврейская автономная область",null,null,null,null,null,"Текущая дата"]
["Забайкальский край",null,"Организация",{"$f":"IF(f_year = \"\",\"\", \"01.01.\"&f_year)","v":"01.01.2020"},{"$f":"IF(f_year = \"\",\"\", \"31.12.\"& f_year)","v":"31.12.2020"},null,"30.04.2021 16:50:56"]
["Ивановская область"]
["Иркутская область",null,null,null,null,null,"Признак изменения данных на листе Доступ к товарам и услугам"]
["Кабардино-Балкарская республика",null,"Виды деятельности",null,null,null,true]
["Калининградская область"]
["Калужская область"]
["Камчатский край"]
["Карачаево-Черкесская республика"]
["Кемеровская область"]
["Кировская область"]
["Костромская область"]
["Краснодарский край"]
["Красноярский край"]
["Курганская область"]
["Курская область"]
["Ленинградская область"]
["Липецкая область"]
["Магаданская область"]
["Московская область"]
["Мурманская область"]
["Ненецкий автономный округ"]
["Нижегородская область"]
["Новгородская область"]
["Новосибирская область"]
["Омская область"]
["Оренбургская область"]
["Орловская область"]
["Пензенская область"]
["Пермский край"]
["Приморский край"]
["Псковская область"]
["Республика Адыгея"]
["Республика Алтай"]
["Республика Башкортостан"]
["Республика Бурятия"]
["Республика Дагестан"]
["Республика Ингушетия"]
["Республика Калмыкия"]
["Республика Карелия"]
["Республика Коми"]
["Республика Крым"]
["Республика Марий Эл"]
["Республика Мордовия"]
["Республика Саха (Якутия)"]
["Республика Северная Осетия-Алания"]
["Республика Татарстан"]
["Республика Тыва"]
["Республика Хакасия"]
["Ростовская область"]
["Рязанская область"]
["Самарская область"]
["Саратовская область"]
["Сахалинская область"]
["Свердловская область"]
["Смоленская область"]
["Ставропольский край"]
["Тамбовская область"]
["Тверская область"]
["Томская область"]
["Тульская область"]
["Тюменская область"]
["Удмуртская республика"]
["Ульяновская область"]
["Хабаровский край"]
["Ханты-Мансийский автономный округ"]
["Челябинская область"]
["Чеченская республика"]
["Чувашская республика"]
["Чукотский автономный округ"]
["Ямало-Ненецкий автономный округ"]
["Ярославская область"]

{"sheet":"modfrmSelectData","index":25,"n_rows":0,"n_cols":0,"rows_kept":0,"cut":false,"hidden":true,"merged":[]}

{"sheet":"modList06","index":26,"n_rows":0,"n_cols":0,"rows_kept":0,"cut":false,"hidden":true,"merged":[]}

{"sheet":"modList01","index":27,"n_rows":0,"n_cols":0,"rows_kept":0,"cut":false,"hidden":true,"merged":[]}

{"sheet":"modList08","index":28,"n_rows":0,"n_cols":0,"rows_kept":0,"cut":false,"hidden":true,"merged":[]}

{"sheet":"et_union_hor","index":29,"n_rows":92,"n_cols":34,"rows_kept":92,"cut":false,"hidden":true,"merged":[[19,7,20,7],[28,3,30,3],[28,4,30,4],[28,5,30,5],[28,6,29,6],[28,7,29,7],[34,7,35,7],[34,8,35,8],[34,9,35,9],[28,8,29,8],[28,9,29,9],[50,3,50,5],[50,6,51,6],[14,2,15,2],[14,3,15,3],[14,4,15,4],[19,2,20,2],[19,5,20,5],[34,6,35,6],[19,6,20,6],[49,3,49,6],[67,3,73,3],[67,28,73,28],[68,4,68,15],[71,4,71,15],[67,4,67,17],[68,20,70,20],[68,21,70,21],[71,20,73,20],[71,21,73,21],[85,6,85,15],[81,9,82,9],[81,10,82,10],[85,20,91,20],[85,21,91,21],[88,7,89,7],[77,3,91,3],[77,28,91,28],[80,4,83,4],[80,5,83,5],[80,6,83,6],[80,18,83,18],[81,8,82,8],[87,4,90,4],[87,5,90,5],[87,6,90,6],[87,18,90,18],[88,8,89,8],[88,9,89,9],[88,10,89,10],[80,11,80,12],[87,11,87,12],[77,4,77,17],[78,20,84,20],[78,21,84,21],[81,7,82,7],[78,6,78,15]]}
[]
[]
["et_Comm"]
[]
[]
[]
["et_List04"]
[]
[]
[]
[]
[]
["et_List09_0"]
[]
[null,"auto",null,1,null,null,0,null,null,"0",null,null,{"$f":"mergeValue(H15)","v":0},null,null,{"$f":"IF(ISERROR(MATCH(MID(Q15,1,250),MID(note_ter,1,250),0)),\"n\",\"y\")","v":"y"},null,{"$f":"K15&\"(\"&L15&\")\"","v":"()"}]
[null,null,null,null,null,null,null,"Добавить МР"]
[]
["et_List09_1"]
[]
[null,"auto",null,null,null,null,0,null,null,"0",null,null,{"$f":"mergeValue(H20)","v":0},null,null,null,null,{"$f":"K20&\"(\"&L20&\")\"","v":"()"}]
[null,null,null,null,null,null,null,null,null,null,"Добавить МО"]
[]
["et_List09_2"]
[]
[null,"auto",null,null,null,null,null,null,null,0,null,null,{"$f":"mergeValue(H25)","v":0},null,null,null,null,{"$f":"K25&\" (\"&L25&\")\"","v":" ()"}]
[]
["et_List07_1"]
[]
[null,null,null,"1",null,"нет",null,1,null,"нет",null,"1",null,null,null,null,null,null,null,null,null,null,null,null,"a",1705000]
[null,null,null,null,null,null,null,null,null,null,null,null,"Добавить централизованную систему коммунальной инфраструктуры"]
[null,null,null,null,null,null,null,null,"Добавить описание территории оказания услуг"]
[]
["et_List07_4"]
[]
[null,null,null,null,null,null,null,1,null,"нет",null,"1",null,null,null,null,null,null,null,null,null,null,null,null,"a",1705000]
[null,null,null,null,null,null,null,null,null,null,null,null,"Добавить централизованную систему коммунальной инфраструктуры"]
[]
["et_List07_5"]
[]
[null,null,null,null,null,null,null,null,null,null,null,"1",null,null,null,null,null,null,null,null,null,null,null,null,"a",1705000]
[]
[]
["et_List03"]
[]
["3","",null,null,null,null,null,null,null,null,null,null,{"$f":"IF(ISERROR(INDEX(kind_of_nameforms,MATCH(E45,kind_of_forms,0),1)),\"\",INDEX(kind_of_nameforms,MATCH(E45,kind_of_forms,0),1))","v":""}]
[]
["et_List02_st","et_List02_ter","et_List02_mr","et_List02_mo"]
[]
[]
[null,null,null,"Форма 1.0.1"]
[null,null,null,"Параметры формы",null,null,"Описание параметров формы"]
["\\",null,null,"№ п/п",null,"Информация"]
[null,null,null,"1",2,3,4]
[null,null,null,1,"Дата заполнения/внесения изменений",{"$f":"IF(form_up_date=\"\",\"\",form_up_date)","v":"30.04.2021"},"Указывается календарная дата первичного заполнения или внесения изменений в форму в виде «ДД.ММ.ГГГГ»."]
[null,null,null,"2.1","Наименование централизованной системы коммунальной инфраструктуры",null,"Указывается наименование централизованной системы холодного водоснабжения/горячего водоснабжения/водоотведения/теплоснабжения, к которой относится размещаемая информация.\nВ случае наличия нескольких централизованных систем коммунальной инфраструктуры, информация по каждой из них указывается в отдельной строке. "]
[null,null,null,"3.1","Наименование регулируемого вида деятельности",null,"Указывается наименование вида регулируемой деятельности."]
[null,null,null,"4.1","Территория оказания услуги по регулируемому виду деятельности","x"]
[null,null,null,{"$f":"D57&\".1\"","v":"4.1.1"},"Субъект РФ",{"$f":"IF(region_name=\"\",\"\",region_name)","v":"Ленинградская область"},"Указывается наименование субъекта Российской Федерации"]
[null,null,null,"4.1.1.1","муниципальный район",null,"Указывается наименование муниципального района, на территории которого организация оказывает услуги по регулируемому виду деятельности."]
[null,null,null,"4.1.1.1.1","муниципальное образование",null,"Указывается наименование и код муниципального района, муниципального образования в соответствии с Общероссийским классификатором территорий муниципальных образований (далее - ОКТМО), входящего в муниципальный район, на территории которого организация оказывает услуги по регулируемому виду деятельности.\nВ случае оказания услуг по регулируемому виду деятельности на территории нескольких муниципальных районов (муниципальных образований) данные по каждому их них указываются в отдельной строке."]
[]
[]
[]
[]
[]
["et_List05_4"]
[]
[null,null,null,"1",null,null,null,null,null,null,null,null,null,null,null,null,null,null,null,null,null,null,null,null,null,null,null,null,null,null,"",null,"NOTSHOW",3]
[null,null,null,null,"Информация об объемах товаров и услуг, их стоимости и способах приобретения у организаций, в том числе:",null,null,null,null,null,null,null,null,null,null,null,{"$f":"SUMIF(T70:T71,\"i\",Q70:Q71)","v":0},null,"Указывается сумма стоимости приобретения товаров и услуг у организаций, сумма оплаты услуг которых превышает 20% суммы расходов на услуги производственного характера","i",1,{"$f":"INDEX(List01_flag_index_1,1,MATCH(A68,List01_NumberColumns,0))","v":{"$error":"#N/A"}}]
[null,null,null,null,null,0]
[]
[null,null,null,null,"Расходы на услуги производственного характера, выполняемые по договорам с организациями на проведение регламентных работ в рамках технологического процесса. Из них товары и услуги, приобретенные у организаций, сумма оплаты услуг которых превышает 20% суммы расходов по статье:",null,null,null,null,null,null,null,null,null,null,null,{"$f":"SUMIF(T73:T74,\"i\",Q73:Q74)","v":0},null,"Указывается сумма стоимости приобретения товаров и услуг у организаций, сумма оплаты услуг которых превышает 20% суммы расходов на капитальный и текущий ремонт основных производственных средства","i",2,{"$f":"INDEX(List01_flag_index_2,1,MATCH(A68,List01_NumberColumns,0))","v":{"$error":"#N/A"}}]
[null,null,null,null,null,0]
[]
[]
["et_List05_4"]
[]
[null,null,null,"1",null,null,null,null,null,null,null,null,null,null,null,null,null,null,null,null,null,null,null,null,null,null,null,null,null,null,"",null,"NOTSHOW",3]
[null,null,null,null,null,1,"Информация об объемах товаров и услуг, их стоимости и способах приобретения у организаций, в том числе:",null,null,null,null,null,null,null,null,null,{"$f":"SUMIF(T80:T85,\"i\",Q80:Q85)","v":0},null,"Указывается сумма стоимости приобретения товаров и услуг у организаций, сумма оплаты услуг которых превышает 20% суммы расходов на капитальный и текущий ремонт основных производственных средства","i",1,{"$f":"INDEX(List01_flag_index_1,1,MATCH(A78,List01_NumberColumns,0))","v":{"$error":"#N/A"}}]
[null,null,null,null,null,0]
[null,null,null,null,null,"1.1",null,null,"1","Итого по поставщику, в том числе","х","х",null,"х","х","х",{"$f":"SUM(Q82:Q84)","v":0},{"$f":"nerr(Q81/List01_costs_OPS)*100","v":0},"Указывается информация отдельно по организациям, сумма оплаты услуг которых превышает 20% суммы расходов на капитальный и текущий ремонт основных производственных средства.\nСпособ приобретения определяется из перечня: Торги/аукционы; Прямые договора без торгов; Прочее\nВ случае наличия нескольких поставщиков, договоров, товаров и (или) услуг информация по ним указывается в отдельных строках.\n","i"]
[null,null,null,null,null,null,null,null,"1.1",null,null,null,"1",null,null,null,null,{"$f":"nerr(costs_OPS/List01_costs_OPS)*100","v":0}]
[null,null,null,null,null,null,null,null,null,null,null,null,null,"Добавить товар/услугу"]
[null,null,null,null,null,null,null,null,null,"Добавить способ"]
[null,null,null,null,null,null,"Добавить поставщика"]
[null,null,null,null,null,2,"Расходы на услуги производственного характера, выполняемые по договорам с организациями на проведение регламентных работ в рамках технологического процесса. Из них товары и услуги, приобретенные у организаций, сумма оплаты услуг которых превышает 20% суммы расходов по статье:",null,null,null,null,null,null,null,null,null,{"$f":"SUMIF(T87:T92,\"i\",Q87:Q92)","v":0},null,"Указывается сумма стоимости приобретения товаров и услуг у организаций, сумма оплаты услуг которых превышает 20% суммы расходов на услуги производственного характера","i",2,{"$f":"INDEX(List01_flag_index_2,1,MATCH(A78,List01_NumberColumns,0))","v":{"$error":"#N/A"}}]
[null,null,null,null,null,0]
[null,null,null,null,null,"2.1",null,null,"1","Итого по поставщику, в том числе","х","х",null,"х","х","х",{"$f":"SUM(Q89:Q91)","v":0},{"$f":"nerr(Q88/List01_costs_OPS)*100","v":0},"Указывается информация отдельно по организациям, сумма оплаты услуг которых превышает 20% суммы расходов на услуги производственного характера.\nСпособ приобретения определяется из перечня: Торги/аукционы; Прямые договора без торгов; Прочее\nВ случае наличия нескольких поставщиков, договоров, товаров и (или) услуг информация по ним указывается в отдельных строках.","i"]
[null,null,null,null,null,null,null,null,"1.1",null,null,null,"1",null,null,null,null,{"$f":"nerr(costs_OPS/List01_costs_OPS)*100","v":0}]
[null,null,null,null,null,null,null,null,null,null,null,null,null,"Добавить товар/услугу"]
[null,null,null,null,null,null,null,null,null,"Добавить способ"]
[null,null,null,null,null,null,"Добавить поставщика"]

{"sheet":"et_union_vert","index":30,"n_rows":0,"n_cols":0,"rows_kept":0,"cut":false,"hidden":true,"merged":[]}

{"sheet":"modList00","index":31,"n_rows":0,"n_cols":0,"rows_kept":0,"cut":false,"hidden":true,"merged":[]}

{"sheet":"modList02","index":32,"n_rows":0,"n_cols":0,"rows_kept":0,"cut":false,"hidden":true,"merged":[]}

{"sheet":"modList03","index":33,"n_rows":0,"n_cols":0,"rows_kept":0,"cut":false,"hidden":true,"merged":[]}

{"sheet":"modList04","index":34,"n_rows":0,"n_cols":0,"rows_kept":0,"cut":false,"hidden":true,"merged":[]}

{"sheet":"modList09","index":35,"n_rows":0,"n_cols":0,"rows_kept":0,"cut":false,"hidden":true,"merged":[]}

{"sheet":"modHTTP","index":36,"n_rows":0,"n_cols":0,"rows_kept":0,"cut":false,"hidden":true,"merged":[]}

{"sheet":"modfrmRegion","index":37,"n_rows":0,"n_cols":0,"rows_kept":0,"cut":false,"hidden":true,"merged":[]}

{"sheet":"MR_LIST","index":38,"n_rows":0,"n_cols":0,"rows_kept":0,"cut":false,"hidden":true,"merged":[]}

{"sheet":"REESTR_VT","index":39,"n_rows":0,"n_cols":0,"rows_kept":0,"cut":false,"hidden":true,"merged":[]}

{"sheet":"REESTR_VED","index":40,"n_rows":8,"n_cols":2,"rows_kept":8,"cut":false,"hidden":true,"merged":[]}
["ID_TARIFF_NAME","VED_NAME"]
[4189671,"Холодное водоснабжение. Питьевая вода"]
[4189672,"Холодное водоснабжение. Техническая вода"]
[4189673,"Холодное водоснабжение. Подвозная вода"]
[4189674,"Транспортировка. Питьевая вода"]
[4189675,"Транспортировка. Техническая вода"]
[4189676,"Транспортировка. Подвозная вода"]
[4189677,"Подключение (технологическое присоединение) к централизованной системе водоснабжения"]

{"sheet":"modfrmReestrObj","index":41,"n_rows":0,"n_cols":0,"rows_kept":0,"cut":false,"hidden":true,"merged":[]}

{"sheet":"DataOrg","index":42,"n_rows":0,"n_cols":0,"rows_kept":0,"cut":false,"hidden":true,"merged":[]}

{"sheet":"modfrmReestr","index":43,"n_rows":0,"n_cols":0,"rows_kept":0,"cut":false,"hidden":true,"merged":[]}

{"sheet":"modUpdTemplMain","index":44,"n_rows":0,"n_cols":0,"rows_kept":0,"cut":false,"hidden":true,"merged":[]}

{"sheet":"REESTR_ORG","index":45,"n_rows":179,"n_cols":10,"rows_kept":179,"cut":false,"hidden":true,"merged":[]}
["№","REGION_ID","REGION_NAME","RST_ORG_ID","ORG_NAME","INN_NAME","KPP_NAME","ORG_START_DATE","ORG_END_DATE"]
[1,"2610","Ленинградская область","31323956","АО \"ВКХ\"","4703165123","470301001",null,null,"VS"]
[2,"2610","Ленинградская область","26373306","АО \"ГАТЧИНСКИЙ ККЗ\"","4719000303","470501001",null,null,"VS"]
[3,"2610","Ленинградская область","30335229","АО \"ГУ ЖКХ\"","5116000922","770401001",null,null,"VS"]
[4,"2610","Ленинградская область","31391606","АО \"ЕвроХим-СЗ\"","4707036312","660850001",null,null,"VS"]
[5,"2610","Ленинградская область","31208153","АО \"ИЭК\"","4725005187","472501001",null,null,"VS"]
[6,"2610","Ленинградская область","29648562","АО \"Исток\"","4703131205","470301001","10-09-2015 00:00:00",null,"VS"]
[7,"2610","Ленинградская область","26373248","АО \"Коммунальные системы Гатчинского района\"","4705039967","470501001",null,null,"VS"]
[8,"2610","Ленинградская область","26604613","АО \"Компания Усть-Луга\"","4707005410","771401001","01-06-1992 00:00:00",null,"VS"]
[9,"2610","Ленинградская область","26506539","АО \"Концерн Росэнергоатом\" филиал \"Ленинградская атомная станция\"","7721632827","472643001",null,null,"VS"]
[10,"2610","Ленинградская область","31449634","АО \"ЛОКС\"","4705029366","781703001",null,null,"VS"]
[11,"2610","Ленинградская область","26523683","АО \"ЛОТЭК\"","4716028445","470701001","09-06-2010 00:00:00",null,"VS"]
[12,"2610","Ленинградская область","28942511","АО \"НПО \"Поиск\"","4703142849","470301001",null,null,"VS"]
[13,"2610","Ленинградская область","26524292","АО \"Нева Энергия\"","7802312374","471302001","09-06-2010 00:00:00",null,"VS"]
[14,"2610","Ленинградская область","26373316","АО \"Промышленный комплекс \"Энергия\"","4720011010","472501001",null,null,"VS"]
[15,"2610","Ленинградская область","27544623","АО \"Птицефабрика Лаголово\"","4720004013","472501001",null,null,"VS"]
[16,"2610","Ленинградская область","26380426","АО \"Птицефабрика Северная\"","4706002688","470601001",null,null,"VS"]
[17,"2610","Ленинградская область","26319703","АО \"СЗИПК\"","7819020549","471501001","09-04-1999 00:00:00",null,"VS"]
[18,"2610","Ленинградская область","27323158","АО \"Славянка\"","7702707386","781343001",null,"10-02-2021 00:00:00","VS"]
[19,"2610","Ленинградская область","30427522","АО ГУ ЖКХ ОП \"Санкт-Петербургское\"","5116000922","784245001","12-10-2015 00:00:00",null,"VS"]
[20,"2610","Ленинградская область","28967688","Банк России (Оздоровительное объединение \"Зеленый бор\" Центрального банка Российской Федерации)","7702235133","471045002","29-04-2015 00:00:00",null,"VS"]
[21,"2610","Ленинградская область","31308465","ВФ АО \"Апатит\"","5103070023","470243001",null,null,"VS"]
[22,"2610","Ленинградская область","26373310","ГБДОУ \"Детский оздоровительный городок \"Малыш\"","4719007588","470501001",null,null,"VS"]
[23,"2610","Ленинградская область","31022952","ГБНОУ \"СПБ ГДТЮ\"","7808023241","784001001",null,null,"VS"]
[24,"2610","Ленинградская область","26373297","ГБПОУ ЛО \"Лисинский лесной колледж\"","4716001436","471601001",null,null,"VS"]
[25,"2610","Ленинградская область","30794671","ГКУЗ ЛО \"ДПБ\"","4719005020","470501001","23-05-2016 00:00:00",null,"VS"]
[26,"2610","Ленинградская область","26422494","ГУП \"Водоканал Санкт-Петербурга\"","7830000426","784201001",null,null,"VS"]
[27,"2610","Ленинградская область","30950162","ГУП \"Леноблводоканал\"","4703144282","470401001",null,null,"VS"]
[28,"2610","Ленинградская область","30881145","ГУП \"ПЕТЕРБУРГСКИЙ МЕТРОПОЛИТЕН \"","7830000970","783801001",null,null,"VS"]
[29,"2610","Ленинградская область","31251220","ГУП «Громовский водоканал»","4712028162","471201001",null,null,"VS"]
[30,"2610","Ленинградская область","31251515","ГУП «Плодовский водоканал»","4712028170","471201001",null,null,"VS"]
[31,"2610","Ленинградская область","31309581","ГУП ЛО \"Водоканал Тельмана\"","4716044937","471601001",null,null,"VS"]
[32,"2610","Ленинградская область","31247312","ГУП ЛО \"Ладожский водовод\"","4703158180","470301001",null,null,"VS"]
[33,"2610","Ленинградская область","31256481","ГУП ЛО \"Павловожилкомхоз\"","4706025220","470601001",null,null,"VS"]
[34,"2610","Ленинградская область","26373260","ГУП ЛО «УВКХ»","4708001489","472701001",null,null,"VS"]
[35,"2610","Ленинградская область","26373225","ЗАО \"Агрофирма  \"Выборжец\"","4703006839","470301001",null,null,"VS"]
[36,"2610","Ленинградская область","26373270","ЗАО \"Завод ВНИИЗЕММАШ\"","4712017964","471201001",null,null,"VS"]
[37,"2610","Ленинградская область","26524163","ЗАО \"Интернешнл Пейпер\"","4704012472","470401001",null,null,"VS"]
[38,"2610","Ленинградская область","26373235","ЗАО \"Каменногорское карьероуправление\"","4704002227","470401001",null,null,"VS"]
[39,"2610","Ленинградская область","28828779","ЗАО \"Крионорд\"","7825332183","781001001","20-11-2014 00:00:00",null,"VS"]
[40,"2610","Ленинградская область","26373234","ЗАО \"Рощино сельхозтехника\"","4704002153","470401001",null,null,"VS"]
[41,"2610","Ленинградская область","26373288","ЗАО \"СП Андреевское\"","4715003007","471501001",null,null,"VS"]
[42,"2610","Ленинградская область","26373268","ЗАО \"Сосновоагропромтехника\"","4712002559","471201001",null,null,"VS"]
[43,"2610","Ленинградская область","30872321","МКП \"УКС\" МО\"НОВОДЕВЯТКИНСКОЕ СЕЛЬСКОЕ ПОСЕЛЕНИЕ\" ВМР ЛО","4703147050","470301001","06-10-2016 00:00:00",null,"VS"]
[44,"2610","Ленинградская область","26561751","МП \"Агалатово-Сервис\"","4703087267","470301001",null,null,"VS"]
[45,"2610","Ленинградская область","28875846","МП \"Единая служба Заказчика\"","4703052514","470301001","01-01-2015 00:00:00",null,"VS"]
[46,"2610","Ленинградская область","27197180","МП \"ЖКХ п. им. Морозова\"","4703072246","470301001",null,null,"VS"]
[47,"2610","Ленинградская область","28967554","МП \"ПКБУ\"","4713008673","470701001","27-04-2015 00:00:00",null,"VS"]
[48,"2610","Ленинградская область","26640400","МП \"Северное ремонтно-эксплуатационное предприятие\"","4703064012","470301001",null,null,"VS"]
[49,"2610","Ленинградская область","26638805","МП \"ТЭКК\"","4703117909","470301001","25-10-2013 00:00:00",null,"VS"]
[50,"2610","Ленинградская область","28813153","МП \"ТеплоРесурс\" МО Кузнечнинское ГП","4712025919","471201001","16-09-2014 00:00:00",null,"VS"]
[51,"2610","Ленинградская область","28504079","МП МО город Коммунар \"ЖКС\"","4705062476","470501001","30-04-2013 00:00:00",null,"VS"]
[52,"2610","Ленинградская область","28284366","МРФ \"Северо-Запад\" ПАО \"Ростелеком\"","7707049388","784243001",null,null,"VS"]
[53,"2610","Ленинградская область","27883622","МУКП \"Свердловские коммунальные системы\"","4703128682","470301001",null,null,"VS"]
[54,"2610","Ленинградская область","26638809","МУП \"Бугровские тепловые сети\"","4703103575","470301001",null,null,"VS"]
[55,"2610","Ленинградская область","30388813","МУП \"ВОДОКАНАЛ\"","4715030240","471501001","12-01-2016 00:00:00",null,"VS"]
[56,"2610","Ленинградская область","31023489","МУП \"Водоканал Кировского района\"","4706039134","470601001",null,null,"VS"]
[57,"2610","Ленинградская область","31191414","МУП \"Водоканал г.Каменногорска\"","4704103909","470401001",null,null,"VS"]
[58,"2610","Ленинградская область","26373246","МУП \"Водоканал\" г. Гатчина","4705014708","470501001",null,null,"VS"]
[59,"2610","Ленинградская область","26373257","МУП \"НазияКомСервис\"","4706027280","470601001",null,null,"VS"]
[60,"2610","Ленинградская область","26373253","МУП \"ПриладожскЖКХ»","4706005311","470601001",null,null,"VS"]
[61,"2610","Ленинградская область","31023514","МУП \"Приладожскводоканал\"","4706039173","470601001",null,null,"VS"]
[62,"2610","Ленинградская область","26373254","МУП \"Путилово ЖКХ\"","4706025188","470601001",null,null,"VS"]
[63,"2610","Ленинградская область","26640632","МУП \"Романовские коммунальные системы\"","4703117955","470301001",null,null,"VS"]
[64,"2610","Ленинградская область","31430605","МУП \"Романовский водоканал\"","4703172650","470301001",null,null,"VS"]
[65,"2610","Ленинградская область","27943060","МУП \"Северное Cияние\"","4706033397","470601001",null,null,"VS"]
[66,"2610","Ленинградская область","26524169","МУП \"Тепловые сети\" г. Гатчина","4705014698","470501001",null,null,"VS"]
[67,"2610","Ленинградская область","31021531","МУП \"УК\"","4703151561","470301001",null,null,"VS"]
[68,"2610","Ленинградская область","27222108","МУП \"Центр ЖКХ\"","4706031872","470601001","01-09-2011 00:00:00",null,"VS"]
[69,"2610","Ленинградская область","26640627","МУП \"Щегловская управляющая компания\"","4703117881","470301001",null,"18-02-2020 00:00:00","VS"]
[70,"2610","Ленинградская область","28001460","МУП «Низино»","4720031916","472501001","25-12-2009 00:00:00",null,"VS"]
[71,"2610","Ленинградская область","26773425","МУП УЖКХ МО ВИЛЛОЗСКОЕ СП","4720024228","472501001",null,null,"VS"]
[72,"2610","Ленинградская область","26639730","ОАО \"Всеволожские тепловые сети\"","4703096470","470301001",null,null,"VS"]
[73,"2610","Ленинградская область","26373244","ОАО \"Выборгский водоканал\"","4704061991","470401001",null,null,"VS"]
[74,"2610","Ленинградская область","26373233","ОАО \"Глебычевский керамический завод\"","4704001015","470401001",null,null,"VS"]
[75,"2610","Ленинградская область","26380458","ОАО \"Завод Сланцы\"","4713000931","471301001",null,null,"VS"]
[76,"2610","Ленинградская область","26561755","ОАО \"Кингисеппский Водоканал\"","4707028015","470701001",null,null,"VS"]
[77,"2610","Ленинградская область","28075211","ОАО \"ЛОЗ-СЗМА\"","7810213056","470501001",null,null,"VS"]
[78,"2610","Ленинградская область","26380442","ОАО \"Лужский водоканал\"","4710027371","471001001",null,"31-08-2020 00:00:00","VS"]
[79,"2610","Ленинградская область","26373240","ОАО \"Птицефабрика Ударник\"","4704083071","470401001",null,null,"VS"]
[80,"2610","Ленинградская область","26814895","ОАО \"РЖД\" (Октябрьская дирекция по тепловодоснабжению - СП Центральной дирекции по тепловодоснабжению - филиала ОАО \"РЖД\")","7708503727","780445015","01-04-2011 00:00:00",null,"VS"]
[81,"2610","Ленинградская область","26373304","ОАО \"Сясьский целлюлозно-бумажный комбинат\"","4718011856","470201001",null,null,"VS"]
[82,"2610","Ленинградская область","26524308","ОАО \"Тепловые сети\", г. Тосно","4716024190","471601001","09-06-2010 00:00:00",null,"VS"]
[83,"2610","Ленинградская область","26373290","ОАО \"УЖКХ\" (Тихвинского района)","4715014471","471501001",null,null,"VS"]
[84,"2610","Ленинградская область","26524171","ОАО \"Узор\"","4719002999","470501001",null,null,"VS"]
[85,"2610","Ленинградская область","31456824","ООО \"АВАНГАРД\"","7810799144","781001001",null,null,"VS"]
[86,"2610","Ленинградская область","30366418","ООО \"АКВА-АЛЬЯНС\"","7813574036","781301001",null,null,"VS"]
[87,"2610","Ленинградская область","28148752","ООО \"АКВАТЕРМ\"","4707032565","470701001",null,null,"VS"]
[88,"2610","Ленинградская область","30872348","ООО \"АЛЬФА\"","4703146106","470301001","19-10-2016 00:00:00",null,"VS"]
[89,"2610","Ленинградская область","26640553","ООО \"Аква Норд-Вест\"","7801432887","780101001",null,null,"VS"]
[90,"2610","Ленинградская область","31479026","ООО \"Акваресурс\"","4704108576","470401001",null,null,"VS"]
[91,"2610","Ленинградская область","28442803","ООО \"Актион\"","4716038411","471601001","03-10-2013 00:00:00",null,"VS"]
[92,"2610","Ленинградская область","31021430","ООО \"Альянс плюс\"","7801336566","780101001",null,null,"VS"]
[93,"2610","Ленинградская область","27909230","ООО \"ВОДОКАНАЛ КИРОВСКОГО ГОРОДСКОГО ПОСЕЛЕНИЯ\"","4706033647","470601001",null,null,"VS"]
[94,"2610","Ленинградская область","28003675","ООО \"ВОДОКАНАЛ ОТРАДНЕНСКОГО ГОРОДСКОГО ПОСЕЛЕНИЯ\"","4706033654","470601001","24-08-2012 00:00:00",null,"VS"]
[95,"2610","Ленинградская область","28029255","ООО \"ВОДОКАНАЛ ПРИЛАДОЖСКОГО ГОРОДСКОГО ПОСЕЛЕНИЯ\"","4706033630","470601001",null,null,"VS"]
[96,"2610","Ленинградская область","28545782","ООО \"ВОДОКАНАЛ\"","4703137398","470301001","19-06-2014 00:00:00",null,"VS"]
[97,"2610","Ленинградская область","31310510","ООО \"ВОДОСФЕРА\"","4704104532","470401001",null,null,"VS"]
[98,"2610","Ленинградская область","26373267","ООО \"Вода-Сервис\"","4711200082","471101001",null,null,"VS"]
[99,"2610","Ленинградская область","28268023","ООО \"ВодоСнаб\"","4711011991","471101001","16-05-2013 00:00:00",null,"VS"]
[100,"2610","Ленинградская область","27965738","ООО \"Водоканал Мгинского городского поселения\"","4706033622","470601001",null,null,"VS"]
[101,"2610","Ленинградская область","26373258","ООО \"Водоканал птицефабрики Синявинская\"","4706027594","470601001",null,null,"VS"]
[102,"2610","Ленинградская область","31449448","ООО \"Водоканал\"","4726003577","472601001",null,null,"VS"]
[103,"2610","Ленинградская область","27677580","ООО \"Выборгская лесопромышленная корпорация\"","4704087728","470401001","16-04-2012 00:00:00",null,"VS"]
[104,"2610","Ленинградская область","28048642","ООО \"ГРАНД\"","4714017430","472601001",null,null,"VS"]
[105,"2610","Ленинградская область","27883546","ООО \"ГТМ - теплосервис\"","7810496527","780501001",null,null,"VS"]
[106,"2610","Ленинградская область","26424110","ООО \"Газпром трансгаз Санкт-Петербург\"","7805018099","781001001",null,null,"VS"]
[107,"2610","Ленинградская область","26640623","ООО \"Ефимовская управляющая компания\"","4715023229","471501001",null,null,"VS"]
[108,"2610","Ленинградская область","28822195","ООО \"Звезда\"","7813559101","470501001","06-11-2014 00:00:00",null,"VS"]
[109,"2610","Ленинградская область","31270040","ООО \"Интехстрой\"","7801346067","780101001",null,null,"VS"]
[110,"2610","Ленинградская область","28828840","ООО \"Инфраструктура Плюс\"","4712025732","471201001","20-11-2014 00:00:00",null,"VS"]
[111,"2610","Ленинградская область","26640639","ООО \"КСК\"","4708021189","472701001",null,null,"VS"]
[112,"2610","Ленинградская область","28155784","ООО \"КУДРОВО-ГРАД\"","4703091016","470301001","01-12-2006 00:00:00",null,"VS"]
[113,"2610","Ленинградская область","26524185","ООО \"Коммун Энерго\"","4707021122","470701001","09-06-2010 00:00:00",null,"VS"]
[114,"2610","Ленинградская область","31423466","ООО \"Коммунальные ресурсы\"","7813630668","781301001",null,null,"VS"]
[115,"2610","Ленинградская область","29648581","ООО \"ЛОКС\"","4703142729","470301001",null,null,"VS"]
[116,"2610","Ленинградская область","31229826","ООО \"Ладога-Ресурс\"","4703158366","470301001",null,null,"VS"]
[117,"2610","Ленинградская область","28016967","ООО \"Лемэк\"","7801213324","472501001","07-03-2012 00:00:00",null,"VS"]
[118,"2610","Ленинградская область","28871193","ООО \"ЛенОблВод-Инвест\"","4703130917","470301001",null,null,"VS"]
[119,"2610","Ленинградская область","27670421","ООО \"ЛенСервисСтрой\"","4712023326","471201001","03-04-2012 00:00:00",null,"VS"]
[120,"2610","Ленинградская область","31210711","ООО \"Ленстрой\"","7806340848","780601001",null,null,"VS"]
[121,"2610","Ленинградская область","31443494","ООО \"МК Свердлова\"","4703177070","470301001",null,null,"VS"]
[122,"2610","Ленинградская область","28829099","ООО \"МПЗ Русско-Высоцкое\"","7810461098","472501001","14-11-2014 00:00:00",null,"VS"]
[123,"2610","Ленинградская область","28545831","ООО \"Наше дело\"","4711012667","471101001",null,null,"VS"]
[124,"2610","Ленинградская область","28968332","ООО \"Новая Водная Ассоциация\"","7801426040","780101001","18-05-2015 00:00:00",null,"VS"]
[125,"2610","Ленинградская область","26375635","ООО \"Ольшаники\"","7801079076","470401001",null,null,"VS"]
[126,"2610","Ленинградская область","28139848","ООО \"ПГ \"Фосфорит\"","4707017905","660850001",null,null,"VS"]
[127,"2610","Ленинградская область","26523713","ООО \"ПГЛЗ\"","4715030610","471501001","09-06-2010 00:00:00",null,"VS"]
[128,"2610","Ленинградская область","28872309","ООО \"ПЛЕМЕННОЙ ЗАВОД \"НОВОЛАДОЖСКИЙ\"","4702017549","470201001",null,null,"VS"]
[129,"2610","Ленинградская область","30906546","ООО \"Первая коммунальная компания\"","4703145134","470301001",null,null,"VS"]
[130,"2610","Ленинградская область","28489933","ООО \"Полар Инвест\"","7806104671","470301001","03-03-2000 00:00:00",null,"VS"]
[131,"2610","Ленинградская область","31004931","ООО \"Прогресс\"","4703151843","783901001",null,null,"VS"]
[132,"2610","Ленинградская область","31443918","ООО \"Прогресс\"","7838092820","783801001",null,null,"VS"]
[133,"2610","Ленинградская область","28931605","ООО \"РСО 47\"","4703142599","470301001","18-12-2014 00:00:00",null,"VS"]
[134,"2610","Ленинградская область","31341205","ООО \"РСТИ-Сертолово\"","4703136228","470301001",null,null,"VS"]
[135,"2610","Ленинградская область","30838856","ООО \"РЦСЗ Ленмединформ\"","7813096118","781301001","28-09-2016 00:00:00",null,"VS"]
[136,"2610","Ленинградская область","28274778","ООО \"Ресурс\"","4711012515","471101001","07-10-2013 00:00:00",null,"VS"]
[137,"2610","Ленинградская область","30858730","ООО \"СЗЭС\"","7801290008","470401001",null,null,"VS"]
[138,"2610","Ленинградская область","30794864","ООО \"СИГНАЛ\"","4716008914","471601001","24-05-2016 00:00:00",null,"VS"]
[139,"2610","Ленинградская область","28799275","ООО \"СК-СИГМА\"","7801583967","780101001",null,null,"VS"]
[140,"2610","Ленинградская область","28828801","ООО \"СКС\"","4703141700","470301001","20-11-2014 00:00:00",null,"VS"]
[141,"2610","Ленинградская область","26640635","ООО \"СМЭУ Заневка\"","4703116542","470301001",null,null,"VS"]
[142,"2610","Ленинградская область","26799802","ООО \"Светогорское жилищно-коммунальное хозяйство\"","4704026517","470401001",null,null,"VS"]
[143,"2610","Ленинградская область","30924547","ООО \"Северо-Запад Инжиниринг\"","4703131332","470301001",null,null,"VS"]
[144,"2610","Ленинградская область","28951581","ООО \"Сланцы\"","0276144176","470701001","01-04-2015 00:00:00",null,"VS"]
[145,"2610","Ленинградская область","26373302","ООО \"Совхоз \"Восточный\"","4716018951","471601001",null,null,"VS"]
[146,"2610","Ленинградская область","31075334","ООО \"ТЕРМО-ЛАЙН\"","4704103465","470401001",null,null,"VS"]
[147,"2610","Ленинградская область","31256290","ООО \"Техническая компания \"Альтернатива\"","7840419463","783901001",null,null,"VS"]
[148,"2610","Ленинградская область","31105173","ООО \"УК \"Кивеннапа\"","7810814748","470401001","15-06-2018 00:00:00",null,"VS"]
[149,"2610","Ленинградская область","28534868","ООО \"УК \"Мурино\"","7838474259","781301001","30-04-2014 00:00:00",null,"VS"]
[150,"2610","Ленинградская область","30914633","ООО \"УК\"Аква-Плюс\"","4703139412","470301001",null,null,"VS"]
[151,"2610","Ленинградская область","28443585","ООО \"УЛВК\"","4707035319","470701001","24-07-2013 00:00:00",null,"VS"]
[152,"2610","Ленинградская область","30832150","ООО \"Уют - Сервис\"","4712026510","471201001","17-08-2016 00:00:00",null,"VS"]
[153,"2610","Ленинградская область","26561857","ООО \"Уют-Сервис плюс\"","4712127967","471201001",null,null,"VS"]
[154,"2610","Ленинградская область","26373272","ООО \"Уют-Сервис\"","4712022996","471201001",null,null,"VS"]
[155,"2610","Ленинградская область","26640604","ООО \"Фирма \"Сигма\"","7811014423","781101001",null,null,"VS"]
[156,"2610","Ленинградская область","26523754","ООО \"Флагман\"","7805222344","470301001","09-06-2010 00:00:00",null,"VS"]
[157,"2610","Ленинградская область","30355386","ООО \"Центр энергосбережения\"","4707034682","470701001",null,"03-03-2020 00:00:00","VS"]
[158,"2610","Ленинградская область","28442757","ООО \"ЭкоСервис\"","4705050914","470501001","29-09-2010 00:00:00",null,"VS"]
[159,"2610","Ленинградская область","28029214","ООО “ВОДОКАНАЛ ПАВЛОВСКОГО ГОРОДСКОГО ПОСЕЛЕНИЯ”","4706033615","470601001",null,null,"VS"]
[160,"2610","Ленинградская область","30872533","ООО «Водолей»","4707038870","470701001","19-05-2016 00:00:00",null,"VS"]
[161,"2610","Ленинградская область","27796956","ООО «ПетроЗемПроект»","7811346468","781301001",null,null,"VS"]
[162,"2610","Ленинградская область","28903773","ООО СМУ \"Выборгский\"","7811312405","781101001","10-02-2015 00:00:00",null,"VS"]
[163,"2610","Ленинградская область","31007537","ООО УК \"Новоантропшино\"","4705063960","470501001",null,null,"VS"]
[164,"2610","Ленинградская область","26526809","ООО Управляющая компания ''Оазис''","4712128456","471201001","09-06-2010 00:00:00",null,"VS"]
[165,"2610","Ленинградская область","26380436","ООО\" Ивангородский водоканал\"","4707026586","470701001",null,null,"VS"]
[166,"2610","Ленинградская область","26640606","Обособленное подразделение ООО \"ФПГ \"РОССТРО - ЛФК\"","7811461140","471645001",null,null,"VS"]
[167,"2610","Ленинградская область","26539356","ПАО \"ТГК-1\" филиал \"Невский\"","7841312071","781301001",null,null,"VS"]
[168,"2610","Ленинградская область","26373286","СМУП \"Водоканал\"","4714017631","472601001",null,null,"VS"]
[169,"2610","Ленинградская область","31358350","СПБ ГБУЗ Туберкулезный санаторий \"Сосновый бор\"","4704022897","470401001",null,null,"VS"]
[170,"2610","Ленинградская область","30903763","ФГБУ \"ЦЖКУ\" МИНОБОРОНЫ РОССИИ","7729314745","770101001",null,null,"VS"]
[171,"2610","Ленинградская область","26375640","ФГУП \"РНЦ \"Прикладная химия\"","7813046340","781101001",null,null,"VS"]
[172,"2610","Ленинградская область","26373300","ФКУ \"Исправительная колония №3 УФСИН России по г. СПб и ЛО\"","4716003610","471601001",null,null,"VS"]
[173,"2610","Ленинградская область","26373296","ФКУ ИК-2 УФСИН России по С-Пб и ЛО","4716000986","471601001",null,null,"VS"]
[174,"2610","Ленинградская область","26769187","Федоровское МУП ЖКХ, инженерных коммуникаций и благоустройства","4716025317","471601001",null,null,"VS"]
[175,"2610","Ленинградская область","26380420","Филиал \"Невский водопровод\" АО \"ЛОКС\"","4705029366","470501001",null,null,"VS"]
[176,"2610","Ленинградская область","31304643","Филиал \"Новогорелово\" АО \"ЛОКС\"","4705029366","472543001",null,null,"VS"]
[177,"2610","Ленинградская область","27289646","Филиал \"Тосненский водоканал\" АО \"ЛОКС\"","4705029366","471643001",null,null,"VS"]
[178,"2610","Ленинградская область","30941480","Филиал ФГБУ \"ЦЖКУ\" Минобороны России по ЗВО","7729314745","784243001",null,null,"VS"]

{"sheet":"modClassifierValidate","index":46,"n_rows":0,"n_cols":0,"rows_kept":0,"cut":false,"hidden":true,"merged":[]}

{"sheet":"modHyp","index":47,"n_rows":0,"n_cols":0,"rows_kept":0,"cut":false,"hidden":true,"merged":[]}

{"sheet":"modfrmDateChoose","index":48,"n_rows":0,"n_cols":0,"rows_kept":0,"cut":false,"hidden":true,"merged":[]}

{"sheet":"modComm","index":49,"n_rows":0,"n_cols":0,"rows_kept":0,"cut":false,"hidden":true,"merged":[]}

{"sheet":"modThisWorkbook","index":50,"n_rows":0,"n_cols":0,"rows_kept":0,"cut":false,"hidden":true,"merged":[]}

{"sheet":"REESTR_MO","index":51,"n_rows":206,"n_cols":4,"rows_kept":206,"cut":false,"hidden":true,"merged":[]}
["№","МР","МО","МО_ОКТМО"]
[1,"Бокситогорский муниципальный район","Бокситогорский муниципальный район","41603000"]
[2,"Бокситогорский муниципальный район","Бокситогорское","41603101"]
[3,"Бокситогорский муниципальный район","Большедворское","41603412"]
[4,"Бокситогорский муниципальный район","Борское","41603416"]
[5,"Бокситогорский муниципальный район","Ефимовское","41603155"]
[6,"Бокситогорский муниципальный район","Лидское","41603460"]
[7,"Бокситогорский муниципальный район","Пикалевское","41603102"]
[8,"Бокситогорский муниципальный район","Самойловское","41603476"]
[9,"Волосовский муниципальный район","Бегуницкое","41606404"]
[10,"Волосовский муниципальный район","Большеврудское","41606412"]
[11,"Волосовский муниципальный район","Волосовский муниципальный район","41606000"]
[12,"Волосовский муниципальный район","Волосовское","41606101"]
[13,"Волосовский муниципальный район","Калитинское","41606420"]
[14,"Волосовский муниципальный район","Клопицкое","41606430"]
[15,"Волосовский муниципальный район","Рабитицское","41606408"]
[16,"Волосовский муниципальный район","Сабское","41606436"]
[17,"Волховский муниципальный район","Бережковское","41609453"]
[18,"Волховский муниципальный район","Волховский муниципальный район","41609000"]
[19,"Волховский муниципальный район","Волховское","41609101"]
[20,"Волховский муниципальный район","Вындиноостровское","41609403"]
[21,"Волховский муниципальный район","Иссадское","41609418"]
[22,"Волховский муниципальный район","Кисельнинское","41609471"]
[23,"Волховский муниципальный район","Колчановское","41609427"]
[24,"Волховский муниципальный район","Новоладожское","41609104"]
[25,"Волховский муниципальный район","Пашское","41609444"]
[26,"Волховский муниципальный район","Потанинское","41609450"]
[27,"Волховский муниципальный район","Свирицкое","41609480"]
[28,"Волховский муниципальный район","Селивановское","41609461"]
[29,"Волховский муниципальный район","Староладожское","41609462"]
[30,"Волховский муниципальный район","Сясьстройское","41609108"]
[31,"Волховский муниципальный район","Усадищенское","41609465"]
[32,"Волховский муниципальный район","Хваловское","41609468"]
[33,"Всеволожский муниципальный район","Агалатовское","41612408"]
[34,"Всеволожский муниципальный район","Бугровское","41612402"]
[35,"Всеволожский муниципальный район","Всеволожский муниципальный район","41612000"]
[36,"Всеволожский муниципальный район","Всеволожское","41612101"]
[37,"Всеволожский муниципальный район","Дубровское","41612154"]
[38,"Всеволожский муниципальный район","Заневское","41612155"]
[39,"Всеволожский муниципальный район","Колтушское","41612416"]
[40,"Всеволожский муниципальный район","Кузьмоловское","41612158"]
[41,"Всеволожский муниципальный район","Куйвозовское","41612420"]
[42,"Всеволожский муниципальный район","Лесколовское","41612424"]
[43,"Всеволожский муниципальный район","Морозовское","41612163"]
[44,"Всеволожский муниципальный район","Муринское","41612103"]
[45,"Всеволожский муниципальный район","Новодевяткинское","41612458"]
[46,"Всеволожский муниципальный район","Рахьинское","41612167"]
[47,"Всеволожский муниципальный район","Романовское","41612442"]
[48,"Всеволожский муниципальный район","Свердловское","41612168"]
[49,"Всеволожский муниципальный район","Сертоловское","41612102"]
[50,"Всеволожский муниципальный район","Токсовское","41612175"]
[51,"Всеволожский муниципальный район","Щегловское","41612448"]
[52,"Всеволожский муниципальный район","Юкковское","41612456"]
[53,"Выборгский муниципальный район","Выборгский муниципальный район","41615000"]
[54,"Выборгский муниципальный район","Выборгское","41615101"]
[55,"Выборгский муниципальный район","Высоцкое","41615104"]
[56,"Выборгский муниципальный район","Гончаровское","41615492"]
[57,"Выборгский муниципальный район","Каменногорское","41615106"]
[58,"Выборгский муниципальный район","Красносельское","41615436"]
[59,"Выборгский муниципальный район","Первомайское","41615460"]
[60,"Выборгский муниципальный район","Полянское","41615464"]
[61,"Выборгский муниципальный район","Приморское","41615108"]
[62,"Выборгский муниципальный район","Рощинское","41615158"]
[63,"Выборгский муниципальный район","Светогорское","41615114"]
[64,"Выборгский муниципальный район","Селезневское","41615476"]
[65,"Выборгский муниципальный район","Советское","41615163"]
[66,"Гатчинский муниципальный район","Большеколпанское","41618408"]
[67,"Гатчинский муниципальный район","Веревское","41618416"]
[68,"Гатчинский муниципальный район","Войсковицкое","41618418"]
[69,"Гатчинский муниципальный район","Вырицкое","41618154"]
[70,"Гатчинский муниципальный район","Гатчинский муниципальный район","41618000"]
[71,"Гатчинский муниципальный район","Гатчинское","41618101"]
[72,"Гатчинский муниципальный район","Дружногорское","41618156"]
[73,"Гатчинский муниципальный район","Елизаветинское","41618424"]
[74,"Гатчинский муниципальный район","Кобринское","41618426"]
[75,"Гатчинский муниципальный район","Коммунарское","41618105"]
[76,"Гатчинский муниципальный район","Новосветское","41618444"]
[77,"Гатчинский муниципальный район","Пудомягское","41618404"]
[78,"Гатчинский муниципальный район","Пудостьское","41618448"]
[79,"Гатчинский муниципальный район","Рождественское","41618452"]
[80,"Гатчинский муниципальный район","Сиверское","41618169"]
[81,"Гатчинский муниципальный район","Сусанинское","41618460"]
[82,"Гатчинский муниципальный район","Сяськелевское","41618461"]
[83,"Гатчинский муниципальный район","Тайцкое","41618176"]
[84,"Кингисеппский муниципальный район","Большелуцкое","41621404"]
[85,"Кингисеппский муниципальный район","Вистинское","41621452"]
[86,"Кингисеппский муниципальный район","Ивангородское","41621102"]
[87,"Кингисеппский муниципальный район","Кингисеппский муниципальный район","41621000"]
[88,"Кингисеппский муниципальный район","Кингисеппское","41621101"]
[89,"Кингисеппский муниципальный район","Котельское","41621420"]
[90,"Кингисеппский муниципальный район","Куземкинское","41621432"]
[91,"Кингисеппский муниципальный район","Нежновское","41621440"]
[92,"Кингисеппский муниципальный район","Опольевское","41621444"]
[93,"Кингисеппский муниципальный район","Пустомержское","41621448"]
[94,"Кингисеппский муниципальный район","Усть-Лужское","41621428"]
[95,"Кингисеппский муниципальный район","Фалилеевское","41621412"]
[96,"Киришский муниципальный район","Будогощское","41624152"]
[97,"Киришский муниципальный район","Глажевское","41624412"]
[98,"Киришский муниципальный район","Киришский муниципальный район","41624000"]
[99,"Киришский муниципальный район","Киришское","41624101"]
[100,"Киришский муниципальный район","Кусинское","41624423"]
[101,"Киришский муниципальный район","Пчевжинское","41624427"]
[102,"Киришский муниципальный район","Пчевское","41624428"]
[103,"Кировский муниципальный район","Кировский муниципальный район","41625000"]
[104,"Кировский муниципальный район","Кировское","41625101"]
[105,"Кировский муниципальный район","Мгинское","41625154"]
[106,"Кировский муниципальный район","Назиевское","41625156"]
[107,"Кировский муниципальный район","Отрадненское","41625104"]
[108,"Кировский муниципальный район","Павловское","41625158"]
[109,"Кировский муниципальный район","Приладожское","41625160"]
[110,"Кировский муниципальный район","Путиловское","41625440"]
[111,"Кировский муниципальный район","Синявинское","41625163"]
[112,"Кировский муниципальный район","Суховское","41625445"]
[113,"Кировский муниципальный район","Шлиссельбургское","41625102"]
[114,"Кировский муниципальный район","Шумское","41625450"]
[115,"Лодейнопольский муниципальный район","Алеховщинское","41627404"]
[116,"Лодейнопольский муниципальный район","Доможировское","41627410"]
[117,"Лодейнопольский муниципальный район","Лодейнопольский муниципальный район","41627000"]
[118,"Лодейнопольский муниципальный район","Лодейнопольское","41627101"]
[119,"Лодейнопольский муниципальный район","Свирьстройское","41627154"]
[120,"Лодейнопольский муниципальный район","Янегское","41627420"]
[121,"Ломоносовский муниципальный район","Аннинское","41630152"]
[122,"Ломоносовский муниципальный район","Большеижорское","41630154"]
[123,"Ломоносовский муниципальный район","Виллозское","41630157"]
[124,"Ломоносовский муниципальный район","Горбунковское","41630424"]
[125,"Ломоносовский муниципальный район","Гостилицкое","41630420"]
[126,"Ломоносовский муниципальный район","Кипенское","41630428"]
[127,"Ломоносовский муниципальный район","Копорское","41630432"]
[128,"Ломоносовский муниципальный район","Лаголовское","41630434"]
[129,"Ломоносовский муниципальный район","Лебяженское","41630162"]
[130,"Ломоносовский муниципальный район","Ломоносовский муниципальный район","41630000"]
[131,"Ломоносовский муниципальный район","Лопухинское","41630436"]
[132,"Ломоносовский муниципальный район","Низинское","41630408"]
[133,"Ломоносовский муниципальный район","Оржицкое","41630438"]
[134,"Ломоносовский муниципальный район","Пениковское","41630412"]
[135,"Ломоносовский муниципальный район","Ропшинское","41630440"]
[136,"Ломоносовский муниципальный район","Русско-Высоцкое","41630444"]
[137,"Лужский муниципальный район","Володарское","41633408"]
[138,"Лужский муниципальный район","Волошовское","41633416"]
[139,"Лужский муниципальный район","Дзержинское","41633420"]
[140,"Лужский муниципальный район","Заклинское","41633436"]
[141,"Лужский муниципальный район","Лужский муниципальный район","41633000"]
[142,"Лужский муниципальный район","Лужское","41633101"]
[143,"Лужский муниципальный район","Мшинское","41633440"]
[144,"Лужский муниципальный район","Оредежское","41633444"]
[145,"Лужский муниципальный район","Осьминское","41633448"]
[146,"Лужский муниципальный район","Ретюнское","41633488"]
[147,"Лужский муниципальный район","Серебрянское","41633464"]
[148,"Лужский муниципальный район","Скребловское","41633468"]
[149,"Лужский муниципальный район","Толмачевское","41633154"]
[150,"Лужский муниципальный район","Торковичское","41633478"]
[151,"Лужский муниципальный район","Ям-Тесовское","41633456"]
[152,"Подпорожский муниципальный район","Важинское","41636154"]
[153,"Подпорожский муниципальный район","Винницкое","41636404"]
[154,"Подпорожский муниципальный район","Вознесенское","41636158"]
[155,"Подпорожский муниципальный район","Никольское","41636163"]
[156,"Подпорожский муниципальный район","Подпорожский муниципальный район","41636000"]
[157,"Подпорожский муниципальный район","Подпорожское","41636101"]
[158,"Приозерский муниципальный район","Громовское","41639412"]
[159,"Приозерский муниципальный район","Запорожское","41639416"]
[160,"Приозерский муниципальный район","Красноозерное","41639420"]
[161,"Приозерский муниципальный район","Кузнечнинское","41639154"]
[162,"Приозерский муниципальный район","Ларионовское","41639424"]
[163,"Приозерский муниципальный район","Мельниковское","41639428"]
[164,"Приозерский муниципальный район","Мичуринское","41639432"]
[165,"Приозерский муниципальный район","Петровское","41639440"]
[166,"Приозерский муниципальный район","Плодовское","41639436"]
[167,"Приозерский муниципальный район","Приозерский муниципальный район","41639000"]
[168,"Приозерский муниципальный район","Приозерское","41639101"]
[169,"Приозерский муниципальный район","Раздольевское","41639408"]
[170,"Приозерский муниципальный район","Ромашкинское","41639434"]
[171,"Приозерский муниципальный район","Севастьяновское","41639404"]
[172,"Приозерский муниципальный район","Сосновское","41639444"]
[173,"Сланцевский муниципальный район","Выскатское","41642404"]
[174,"Сланцевский муниципальный район","Гостицкое","41642424"]
[175,"Сланцевский муниципальный район","Загривское","41642408"]
[176,"Сланцевский муниципальный район","Новосельское","41642420"]
[177,"Сланцевский муниципальный район","Сланцевский муниципальный район","41642000"]
[178,"Сланцевский муниципальный район","Сланцевское","41642101"]
[179,"Сланцевский муниципальный район","Старопольское","41642436"]
[180,"Сланцевский муниципальный район","Черновское","41642440"]
[181,"Сосновоборский городской округ","Сосновоборский городской округ","41754000"]
[182,"Тихвинский муниципальный район","Борское","41645410"]
[183,"Тихвинский муниципальный район","Ганьковское","41645412"]
[184,"Тихвинский муниципальный район","Горское","41645416"]
[185,"Тихвинский муниципальный район","Коськовское","41645472"]
[186,"Тихвинский муниципальный район","Мелегежское","41645408"]
[187,"Тихвинский муниципальный район","Пашозерское","41645456"]
[188,"Тихвинский муниципальный район","Тихвинский муниципальный район","41645000"]
[189,"Тихвинский муниципальный район","Тихвинское","41645101"]
[190,"Тихвинский муниципальный район","Цвылевское","41645432"]
[191,"Тихвинский муниципальный район","Шугозерское","41645477"]
[192,"Тосненский муниципальный район","Красноборское","41648154"]
[193,"Тосненский муниципальный район","Лисинское","41648430"]
[194,"Тосненский муниципальный район","Любанское","41648105"]
[195,"Тосненский муниципальный район","Никольское","41648108"]
[196,"Тосненский муниципальный район","Нурминское","41648418"]
[197,"Тосненский муниципальный район","Рябовское","41648160"]
[198,"Тосненский муниципальный район","Тельмановское","41648443"]
[199,"Тосненский муниципальный район","Тосненский муниципальный район","41648000"]
[200,"Тосненский муниципальный район","Тосненское","41648101"]
[201,"Тосненский муниципальный район","Трубникоборское","41648444"]
[202,"Тосненский муниципальный район","Ульяновское","41648164"]
[203,"Тосненский муниципальный район","Фёдоровское","41648165"]
[204,"Тосненский муниципальный район","Форносовское","41648170"]
[205,"Тосненский муниципальный район","Шапкинское","41648464"]

{"sheet":"REESTR_MO_FILTER","index":52,"n_rows":0,"n_cols":0,"rows_kept":0,"cut":false,"hidden":true,"merged":[]}

{"sheet":"modfrmReestrMR","index":53,"n_rows":0,"n_cols":0,"rows_kept":0,"cut":false,"hidden":true,"merged":[]}

{"sheet":"modServiceModule","index":54,"n_rows":0,"n_cols":0,"rows_kept":0,"cut":false,"hidden":true,"merged":[]}

{"sheet":"modfrmCheckUpdates","index":55,"n_rows":0,"n_cols":0,"rows_kept":0,"cut":false,"hidden":true,"merged":[]}

{"sheet":"REESTR_DS","index":56,"n_rows":3,"n_cols":2,"rows_kept":3,"cut":false,"hidden":true,"merged":[]}
[]
[]
[null,"Ломоносовский муниципальный район, Аннинское (41630152);"]

{"sheet":"REESTR_CHS","index":57,"n_rows":0,"n_cols":0,"rows_kept":0,"cut":false,"hidden":true,"merged":[]}

{"sheet":"REESTR_LINK","index":58,"n_rows":3,"n_cols":3,"rows_kept":3,"cut":false,"hidden":true,"merged":[]}
["ID","LINK_NAME","REGION"]
[4189678,"https://portal.eias.ru/Portal/DownloadPage.aspx?type=12&guid=????????-????-????-????-????????????","ALL"]
[4190415,"https://eias.fstrf.ru/disclo/get_file?p_guid=????????-????-????-????-????????????","ALL"]